Workbook

Sheet CAPA

Sheet DADOS
B2: DATA | D2: 2021-08-09
B4: CLIENTE | D4: PREFEITURA MUNICIPAL DE POUSO ALEGRE
B6: REVISÃO | D6: R00
B8: PROJETO | D8: PROJETO DE ABASTECIMENTO DE ÁGUA - "E.M. PROFESSORA MARIA BARBOSA"
B10: BDI TIPO 1 | D10: 0.2423
B12: BDI TIPO 2 | D12: 0.2025
B14: REFERÊNCIA 1 | D14: SINAPI
B16: DATA REF. 1 | D16: 2021-06-01
B18: REFERÊNCIA 2 | D18: SETOP
B20: DATA REF. 2 | D20: 2021-04-01

Sheet ORC
A2: 1000 | B2: a | C2: ADMINISTRAÇAÕ DE OBRA | J2: =SUMIF(A:A,B2,J:J) -> 0 | K2: =SUMIF(A:A,B2,K:K) -> 0
B3: b
A4: =LEFT(B4) -> c | B4: c | C4: =IF($E4="SINAPI",VLOOKUP($D4,SINAPI,2,0),IF(E4="SETOP",VLOOKUP($D4,SETOP,3,0),IF(E4="CPU",VLOOKUP($D4,COMPOSIÇÃO,2,0),IF(E4="COTAÇÃO",VLOOKUP($D4,COTAÇÃO,3,0),VLOOKUP(#REF!,DIVERSAS,2,0))))) ->  | F4: =IF(E4="SINAPI",VLOOKUP($D4,SINAPI,3,0),IF(E4="SETOP",VLOOKUP($D4,SETOP,4,0),IF(E4="CPU",VLOOKUP($D4,COMPOSIÇÃO,5,0),IF(E4="COTAÇÃO",VLOOKUP($D4,COTAÇÃO,8,0),VLOOKUP(#REF!,DIVERSAS,3,0))))) ->  | H4: =IF(E4="SINAPI",VLOOKUP($D4,SINAPI,4,0),IF(E4="SETOP",VLOOKUP($D4,SETOP,5,0),IF(E4="CPU",VLOOKUP($D4,COMPOSIÇÃO,8,0),IF(E4="COTAÇÃO",VLOOKUP($D4,COTAÇÃO,11,0),VLOOKUP(#REF!,DIVERSAS,4,0))))) ->  | I4: =ROUND(H4*(1+$J$11),2) ->  | J4: =ROUND(G4*H4,2) ->  | K4: =ROUND(I4*G4,2) -> 
A5: =2000 -> 2000
B8: ="ORÇAMENTO- " &B10 -> ORÇAMENTO- PROJETO DE ABASTECIMENTO DE ÁGUA - "E.M. PROFESSORA MARIA BARBOSA" | J8: Revisão: | K8: =DADOS!D6 -> R00 | L8: a
B9: Projeto: | I9: Informações:
B10: =DADOS!D8 -> PROJETO DE ABASTECIMENTO DE ÁGUA - "E.M. PROFESSORA MARIA BARBOSA" | I10: Data: | J10: =DADOS!D2 -> 2021-08-09
B11: Responsável: | I11: BDI 1 | J11: =DADOS!D10 -> 0.2423
I12: BDI 2 - COTAÇÕES | J12: =DADOS!D12 -> 0.2025
I13: Referências:
I14: =DADOS!D14 -> SINAPI | J14: =DADOS!D16 -> 2021-06-01
I15: =DADOS!D18 -> SETOP | J15: =DADOS!D20 -> 2021-04-01
B16: ="PROJETO EXECUTIVO - "&B10 -> PROJETO EXECUTIVO - PROJETO DE ABASTECIMENTO DE ÁGUA - "E.M. PROFESSORA MARIA BARBOSA"
B18: ITEM | C18: DESCRIÇÃO | D18: CÓDIGO | E18: REFERÊNCIA | F18: UNID. | G18: QUANT. | H18: PREÇO UNIT. | I18: PREÇO UNIT. COM BDI | J18: TOTAL | K18: TOTAL COM BDI
A19: 1000 | B19: 1 | C19: ADMINISTRAÇÃO DE OBRA | J19: =SUMIF(A:A,B19,J:J) -> 4140.98 | K19: =SUMIF(A:A,B19,K:K) -> 5144.01
A20: =LEFT(B20) -> 1 | B20: 1.1 | C20: =IF($E20="SINAPI",VLOOKUP($D20,SINAPI,2,0),IF(E20="SETOP",VLOOKUP($D20,SETOP,3,0),IF(E20="CPU",VLOOKUP($D20,COMPOSIÇÃO,2,0),IF(E20="COTAÇÃO",VLOOKUP($D20,COTAÇÃO,3,0),VLOOKUP(#REF!,DIVERSAS,2,0))))) -> FORNECIMENTO E COLOCAÇÃO DE PLACAS DE OBRAS EM CHAPA GALVANIZADA (4,00 X 2,00 M ) SÃO CONFECCIONADAS EM CHAPA GALVANIZADA 26. AS CHAPAS SERÃO AFIXADAS COM REBITES 410 E PARAFUSOS 3/8, EM UMA ESTRUTURA METÁLICA COM VIGA U 2" ENRIJECIDA E METALON 20MMX20MM,334 | D20: ED-50154 | E20: SETOP | F20: =IF(E20="SINAPI",VLOOKUP($D20,SINAPI,3,0),IF(E20="SETOP",VLOOKUP($D20,SETOP,4,0),IF(E20="CPU",VLOOKUP($D20,COMPOSIÇÃO,5,0),IF(E20="COTAÇÃO",VLOOKUP($D20,COTAÇÃO,8,0),VLOOKUP(#REF!,DIVERSAS,3,0))))) -> U | G20: 1 | H20: =IF(E20="SINAPI",VLOOKUP($D20,SINAPI,4,0),IF(E20="SETOP",VLOOKUP($D20,SETOP,5,0),IF(E20="CPU",VLOOKUP($D20,COMPOSIÇÃO,8,0),IF(E20="COTAÇÃO",VLOOKUP($D20,COTAÇÃO,11,0),VLOOKUP(#REF!,DIVERSAS,4,0))))) -> 1627.62 | I20: =ROUND(H20*(1+$J$11),2) -> 2021.99 | J20: =ROUND(G20*H20,2) -> 1627.62 | K20: =ROUND(I20*G20,2) -> 2021.99
A21: =2000 -> 2000 | C21: QUANTIDADE | D21: 1 | E21: U
A22: =LEFT(B22) -> 1 | B22: 1.2 | C22: =IF($E22="SINAPI",VLOOKUP($D22,SINAPI,2,0),IF(E22="SETOP",VLOOKUP($D22,SETOP,3,0),IF(E22="CPU",VLOOKUP($D22,COMPOSIÇÃO,2,0),IF(E22="COTAÇÃO",VLOOKUP($D22,COTAÇÃO,3,0),VLOOKUP(#REF!,DIVERSAS,2,0))))) -> BANHEIRO QUÍMICO 110 X 120 X 230 CM COM MANUTENÇÃO | D22: ED-50155 | E22: SETOP | F22: =IF(E22="SINAPI",VLOOKUP($D22,SINAPI,3,0),IF(E22="SETOP",VLOOKUP($D22,SETOP,4,0),IF(E22="CPU",VLOOKUP($D22,COMPOSIÇÃO,5,0),IF(E22="COTAÇÃO",VLOOKUP($D22,COTAÇÃO,8,0),VLOOKUP(#REF!,DIVERSAS,3,0))))) -> MÊS | G22: =D25 -> 1 | H22: =IF(E22="SINAPI",VLOOKUP($D22,SINAPI,4,0),IF(E22="SETOP",VLOOKUP($D22,SETOP,5,0),IF(E22="CPU",VLOOKUP($D22,COMPOSIÇÃO,8,0),IF(E22="COTAÇÃO",VLOOKUP($D22,COTAÇÃO,11,0),VLOOKUP(#REF!,DIVERSAS,4,0))))) -> 515 | I22: =ROUND(H22*(1+$J$11),2) -> 639.78 | J22: =ROUND(G22*H22,2) -> 515 | K22: =ROUND(I22*G22,2) -> 639.78
A23: =2000 -> 2000 | C23: QUANTIDADE | D23: 1 | E23: U
A24: =2000 -> 2000 | C24: MESES | D24: 1
A25: =2000 -> 2000 | C25: TOTAL | D25: =D23*D24 -> 1 | E25: MÊSES
A26: =LEFT(B26) -> 1 | B26: 1.3 | C26: =IF($E26="SINAPI",VLOOKUP($D26,SINAPI,2,0),IF(E26="SETOP",VLOOKUP($D26,SETOP,3,0),IF(E26="CPU",VLOOKUP($D26,COMPOSIÇÃO,2,0),IF(E26="COTAÇÃO",VLOOKUP($D26,COTAÇÃO,3,0),VLOOKUP(#REF!,DIVERSAS,2,0))))) -> CONE DE SINALIZACAO EM PVC RIGIDO COM FAIXA REFLETIVA, H = 70 / 76 CM | D26: 13244 | E26: SINAPI | F26: =IF(E26="SINAPI",VLOOKUP($D26,SINAPI,3,0),IF(E26="SETOP",VLOOKUP($D26,SETOP,4,0),IF(E26="CPU",VLOOKUP($D26,COMPOSIÇÃO,5,0),IF(E26="COTAÇÃO",VLOOKUP($D26,COTAÇÃO,8,0),VLOOKUP(#REF!,DIVERSAS,3,0))))) -> UN | G26: =D27 -> 4 | H26: =IF(E26="SINAPI",VLOOKUP($D26,SINAPI,4,0),IF(E26="SETOP",VLOOKUP($D26,SETOP,5,0),IF(E26="CPU",VLOOKUP($D26,COMPOSIÇÃO,8,0),IF(E26="COTAÇÃO",VLOOKUP($D26,COTAÇÃO,11,0),VLOOKUP(#REF!,DIVERSAS,4,0))))) -> 41.1 | I26: =ROUND(H26*(1+$J$11),2) -> 51.06 | J26: =ROUND(G26*H26,2) -> 164.4 | K26: =ROUND(I26*G26,2) -> 204.24
A27: =2000 -> 2000 | C27: QUANTIDADE | D27: 4 | E27: U
A28: =LEFT(B28) -> 1 | B28: 1.4 | C28: =IF($E28="SINAPI",VLOOKUP($D28,SINAPI,2,0),IF(E28="SETOP",VLOOKUP($D28,SETOP,3,0),IF(E28="CPU",VLOOKUP($D28,COMPOSIÇÃO,2,0),IF(E28="COTAÇÃO",VLOOKUP($D28,COTAÇÃO,3,0),VLOOKUP(#REF!,DIVERSAS,2,0))))) -> TELA PLASTICA LARANJA INCLUINDO VERGALHÃO, PONTEIRA E INSTALAÇÃO | D28: DAC-1.1 | E28: CPU | F28: =IF(E28="SINAPI",VLOOKUP($D28,SINAPI,3,0),IF(E28="SETOP",VLOOKUP($D28,SETOP,4,0),IF(E28="CPU",VLOOKUP($D28,COMPOSIÇÃO,5,0),IF(E28="COTAÇÃO",VLOOKUP($D28,COTAÇÃO,8,0),VLOOKUP(#REF!,DIVERSAS,3,0))))) -> UN | G28: =D30 -> 170 | H28: =IF(E28="SINAPI",VLOOKUP($D28,SINAPI,4,0),IF(E28="SETOP",VLOOKUP($D28,SETOP,5,0),IF(E28="CPU",VLOOKUP($D28,COMPOSIÇÃO,8,0),IF(E28="COTAÇÃO",VLOOKUP($D28,COTAÇÃO,11,0),VLOOKUP(#REF!,DIVERSAS,4,0))))) -> 10.788 | I28: =ROUND(H28*(1+$J$11),2) -> 13.4 | J28: =ROUND(G28*H28,2) -> 1833.96 | K28: =ROUND(I28*G28,2) -> 2278
A29: =2000 -> 2000 | C29: EXTENSÃO DA TELA PLÁSTICA | D29: 170 | E29: M
A30: =2000 -> 2000 | C30: TOTAL | D30: =D29 -> 170 | E30: M
A31: 1000 | B31: 2 | C31: EXECUÇÃO DO POÇO | J31: =SUMIF(A:A,B31,J:J) -> 126507.26 | K31: =SUMIF(A:A,B31,K:K) -> 152298.11
B32: 2.1 | C32: ENTORNO DO POÇO
A33: =LEFT(B33) -> 2 | B33: 2.1.1 | C33: =IF($E33="SINAPI",VLOOKUP($D33,SINAPI,2,0),IF(E33="SETOP",VLOOKUP($D33,SETOP,3,0),IF(E33="CPU",VLOOKUP($D33,COMPOSIÇÃO,2,0),IF(E33="COTAÇÃO",VLOOKUP($D33,COTAÇÃO,3,0),VLOOKUP(#REF!,DIVERSAS,2,0))))) -> CERCA DE MOURÃO H = 2,80 M - MOURÃO PRÉ-FABRICADO DE CONCRETO PONTA VIRADA A CADA 2,50 M, 3 FIOS DE ARAME FARPADO E TELA GALVANIZADA # 2" FIO 12, INCLUSIVE FUNDAÇÃO | D33: ED-48386 | E33: SETOP | F33: =IF(E33="SINAPI",VLOOKUP($D33,SINAPI,3,0),IF(E33="SETOP",VLOOKUP($D33,SETOP,4,0),IF(E33="CPU",VLOOKUP($D33,COMPOSIÇÃO,5,0),IF(E33="COTAÇÃO",VLOOKUP($D33,COTAÇÃO,8,0),VLOOKUP(#REF!,DIVERSAS,3,0))))) -> M | G33: =D34 -> 16 | H33: =IF(E33="SINAPI",VLOOKUP($D33,SINAPI,4,0),IF(E33="SETOP",VLOOKUP($D33,SETOP,5,0),IF(E33="CPU",VLOOKUP($D33,COMPOSIÇÃO,8,0),IF(E33="COTAÇÃO",VLOOKUP($D33,COTAÇÃO,11,0),VLOOKUP(#REF!,DIVERSAS,4,0))))) -> 260.27 | I33: =ROUND(H33*(1+$J$11),2) -> 323.33 | J33: =ROUND(G33*H33,2) -> 4164.32 | K33: =ROUND(I33*G33,2) -> 5173.28
A34: =2000 -> 2000 | C34: PERÍMETRO DA ÁREA DO POÇO | D34: =16 -> 16 | E34: M
A35: =LEFT(B35) -> 2 | B35: 2.1.2 | C35: =IF($E35="SINAPI",VLOOKUP($D35,SINAPI,2,0),IF(E35="SETOP",VLOOKUP($D35,SETOP,3,0),IF(E35="CPU",VLOOKUP($D35,COMPOSIÇÃO,2,0),IF(E35="COTAÇÃO",VLOOKUP($D35,COTAÇÃO,3,0),VLOOKUP(#REF!,DIVERSAS,2,0))))) -> EXECUÇÃO DE PASSEIO (CALÇADA) OU PISO DE CONCRETO COM CONCRETO MOLDADO IN LOCO, FEITO EM OBRA, ACABAMENTO CONVENCIONAL, ESPESSURA 8 CM, ARMADO. AF_07/2016 | D35: 94994 | E35: SINAPI | F35: =IF(E35="SINAPI",VLOOKUP($D35,SINAPI,3,0),IF(E35="SETOP",VLOOKUP($D35,SETOP,4,0),IF(E35="CPU",VLOOKUP($D35,COMPOSIÇÃO,5,0),IF(E35="COTAÇÃO",VLOOKUP($D35,COTAÇÃO,8,0),VLOOKUP(#REF!,DIVERSAS,3,0))))) -> M2 | G35: =D36 -> 1.44 | H35: =IF(E35="SINAPI",VLOOKUP($D35,SINAPI,4,0),IF(E35="SETOP",VLOOKUP($D35,SETOP,5,0),IF(E35="CPU",VLOOKUP($D35,COMPOSIÇÃO,8,0),IF(E35="COTAÇÃO",VLOOKUP($D35,COTAÇÃO,11,0),VLOOKUP(#REF!,DIVERSAS,4,0))))) -> 112.57 | I35: =ROUND(H35*(1+$J$11),2) -> 139.85 | J35: =ROUND(G35*H35,2) -> 162.1 | K35: =ROUND(I35*G35,2) -> 201.38
A36: =2000 -> 2000 | C36: LAJE SANITÁRIA | D36: =1.2*1.2 -> 1.44 | E36: M2
A37: =LEFT(B37) -> 2 | B37: 2.1.3 | C37: =IF($E37="SINAPI",VLOOKUP($D37,SINAPI,2,0),IF(E37="SETOP",VLOOKUP($D37,SETOP,3,0),IF(E37="CPU",VLOOKUP($D37,COMPOSIÇÃO,2,0),IF(E37="COTAÇÃO",VLOOKUP($D37,COTAÇÃO,3,0),VLOOKUP(#REF!,DIVERSAS,2,0))))) -> LASTRO COM MATERIAL GRANULAR (PEDRA BRITADA N.2), APLICADO EM PISOS OU LAJES SOBRE SOLO, ESPESSURA DE *10 CM*. AF_08/2017 | D37: 96624 | E37: SINAPI | F37: =IF(E37="SINAPI",VLOOKUP($D37,SINAPI,3,0),IF(E37="SETOP",VLOOKUP($D37,SETOP,4,0),IF(E37="CPU",VLOOKUP($D37,COMPOSIÇÃO,5,0),IF(E37="COTAÇÃO",VLOOKUP($D37,COTAÇÃO,8,0),VLOOKUP(#REF!,DIVERSAS,3,0))))) -> M3 | G37: =D40 -> 0.144 | H37: =IF(E37="SINAPI",VLOOKUP($D37,SINAPI,4,0),IF(E37="SETOP",VLOOKUP($D37,SETOP,5,0),IF(E37="CPU",VLOOKUP($D37,COMPOSIÇÃO,8,0),IF(E37="COTAÇÃO",VLOOKUP($D37,COTAÇÃO,11,0),VLOOKUP(#REF!,DIVERSAS,4,0))))) -> 120.3 | I37: =ROUND(H37*(1+$J$11),2) -> 149.45 | J37: =ROUND(G37*H37,2) -> 17.32 | K37: =ROUND(I37*G37,2) -> 21.52
A38: =2000 -> 2000 | C38: ÁREA DE PASSEIO | D38: =D36 -> 1.44 | E38: M2
A39: =2000 -> 2000 | C39: ESPESSURA | D39: 0.1 | E39: M
A40: =2000 -> 2000 | C40: TOTAL | D40: =D38*D39 -> 0.144 | E40: M3
A41: =LEFT(B41) -> 2 | B41: 2.1.4 | C41: =IF($E41="SINAPI",VLOOKUP($D41,SINAPI,2,0),IF(E41="SETOP",VLOOKUP($D41,SETOP,3,0),IF(E41="CPU",VLOOKUP($D41,COMPOSIÇÃO,2,0),IF(E41="COTAÇÃO",VLOOKUP($D41,COTAÇÃO,3,0),VLOOKUP(#REF!,DIVERSAS,2,0))))) -> CARGA, MANOBRA E DESCARGA DE SOLOS E MATERIAIS GRANULARES EM CAMINHÃO BASCULANTE 18 M³ - CARGA COM PÁ CARREGADEIRA (CAÇAMBA DE 1,7 A 2,8 M³ / 128 HP) E DESCARGA LIVRE (UNIDADE: M3). AF_07/2020 | D41: 100976 | E41: SINAPI | F41: =IF(E41="SINAPI",VLOOKUP($D41,SINAPI,3,0),IF(E41="SETOP",VLOOKUP($D41,SETOP,4,0),IF(E41="CPU",VLOOKUP($D41,COMPOSIÇÃO,5,0),IF(E41="COTAÇÃO",VLOOKUP($D41,COTAÇÃO,8,0),VLOOKUP(#REF!,DIVERSAS,3,0))))) -> M3 | G41: =ROUND(D42,2) -> 0.14 | H41: =IF(E41="SINAPI",VLOOKUP($D41,SINAPI,4,0),IF(E41="SETOP",VLOOKUP($D41,SETOP,5,0),IF(E41="CPU",VLOOKUP($D41,COMPOSIÇÃO,8,0),IF(E41="COTAÇÃO",VLOOKUP($D41,COTAÇÃO,11,0),VLOOKUP(#REF!,DIVERSAS,4,0))))) -> 5.94 | I41: =ROUND(H41*(1+$J$11),2) -> 7.38 | J41: =ROUND(G41*H41,2) -> 0.83 | K41: =ROUND(I41*G41,2) -> 1.03
A42: =2000 -> 2000 | C42: VOLUME DE BRITA | D42: =G37 -> 0.144 | E42: M3
A43: =LEFT(B43) -> 2 | B43: 2.1.5 | C43: =IF($E43="SINAPI",VLOOKUP($D43,SINAPI,2,0),IF(E43="SETOP",VLOOKUP($D43,SETOP,3,0),IF(E43="CPU",VLOOKUP($D43,COMPOSIÇÃO,2,0),IF(E43="COTAÇÃO",VLOOKUP($D43,COTAÇÃO,3,0),VLOOKUP(#REF!,DIVERSAS,2,0))))) -> TRANSPORTE COM CAMINHÃO BASCULANTE DE 6 M³, EM VIA URBANA PAVIMENTADA, DMT ATÉ 30 KM (UNIDADE: M3XKM). AF_07/2020 | D43: 97914 | E43: SINAPI | F43: =IF(E43="SINAPI",VLOOKUP($D43,SINAPI,3,0),IF(E43="SETOP",VLOOKUP($D43,SETOP,4,0),IF(E43="CPU",VLOOKUP($D43,COMPOSIÇÃO,5,0),IF(E43="COTAÇÃO",VLOOKUP($D43,COTAÇÃO,8,0),VLOOKUP(#REF!,DIVERSAS,3,0))))) -> M3XKM | G43: =ROUND(D46,2) -> 3.43 | H43: =IF(E43="SINAPI",VLOOKUP($D43,SINAPI,4,0),IF(E43="SETOP",VLOOKUP($D43,SETOP,5,0),IF(E43="CPU",VLOOKUP($D43,COMPOSIÇÃO,8,0),IF(E43="COTAÇÃO",VLOOKUP($D43,COTAÇÃO,11,0),VLOOKUP(#REF!,DIVERSAS,4,0))))) -> 1.95 | I43: =ROUND(H43*(1+$J$11),2) -> 2.42 | J43: =ROUND(G43*H43,2) -> 6.69 | K43: =ROUND(I43*G43,2) -> 8.3
A44: =2000 -> 2000 | C44: VOLUME DE BRITA | D44: =D42 -> 0.144 | E44: M3
A45: =2000 -> 2000 | C45: DISTÂNCIA DE TRANSPORTE | D45: 23.8 | E45: KM
A46: =2000 -> 2000 | C46: TOTAL | D46: =D45*D44 -> 3.4272 | E46: M3XKM
B47: 2.2 | C47: PERFURAÇÃO DE POÇO TUBULAR PROFUNDO
A48: =LEFT(B48) -> 2 | B48: 2.2.1 | C48: =IF($E48="SINAPI",VLOOKUP($D48,SINAPI,2,0),IF(E48="SETOP",VLOOKUP($D48,SETOP,3,0),IF(E48="CPU",VLOOKUP($D48,COMPOSIÇÃO,2,0),IF(E48="COTAÇÃO",VLOOKUP($D48,COTAÇÃO,3,0),VLOOKUP(#REF!,DIVERSAS,2,0))))) -> INSTALAÇÃO DE BARRILETE, CONJUNTO MOTO BOMBA, OUTORGA E HIDRÔMETRO E PERFURAÇÃO- INCLUSO FORNECIMENTO E INSTALAÇÃO DE TODOS OS MATERIAIS | D48: DAC-03 | E48: COTAÇÃO | F48: =IF(E48="SINAPI",VLOOKUP($D48,SINAPI,3,0),IF(E48="SETOP",VLOOKUP($D48,SETOP,4,0),IF(E48="CPU",VLOOKUP($D48,COMPOSIÇÃO,5,0),IF(E48="COTAÇÃO",VLOOKUP($D48,COTAÇÃO,8,0),VLOOKUP(#REF!,DIVERSAS,3,0))))) -> UN | G48: =ROUND(D49,2) -> 1 | H48: =IF(E48="SINAPI",VLOOKUP($D48,SINAPI,4,0),IF(E48="SETOP",VLOOKUP($D48,SETOP,5,0),IF(E48="CPU",VLOOKUP($D48,COMPOSIÇÃO,8,0),IF(E48="COTAÇÃO",VLOOKUP($D48,COTAÇÃO,11,0),VLOOKUP(#REF!,DIVERSAS,4,0))))) -> 120166 | I48: =ROUND(H48*(1+DADOS!$D$12),2) -> 144499.62 | J48: =ROUND(G48*H48,2) -> 120166 | K48: =ROUND(I48*G48,2) -> 144499.62
A49: =2000 -> 2000 | D49: 1 | E49: U
A50: =LEFT(B50) -> 2 | B50: 2.2.2 | C50: =IF($E50="SINAPI",VLOOKUP($D50,SINAPI,2,0),IF(E50="SETOP",VLOOKUP($D50,SETOP,3,0),IF(E50="CPU",VLOOKUP($D50,COMPOSIÇÃO,2,0),IF(E50="COTAÇÃO",VLOOKUP($D50,COTAÇÃO,3,0),VLOOKUP(#REF!,DIVERSAS,2,0))))) -> FORNECIMENTO DE CLORADOR TIPO TC 9032-500 ACIONAMENTO HIDRÁULICO, INCLUSO TABLETES PARA UTILIZAÇÃO | D50: DAC-02 | E50: COTAÇÃO | F50: =IF(E50="SINAPI",VLOOKUP($D50,SINAPI,3,0),IF(E50="SETOP",VLOOKUP($D50,SETOP,4,0),IF(E50="CPU",VLOOKUP($D50,COMPOSIÇÃO,5,0),IF(E50="COTAÇÃO",VLOOKUP($D50,COTAÇÃO,8,0),VLOOKUP(#REF!,DIVERSAS,3,0))))) -> UN | G50: =ROUND(D51,2) -> 1 | H50: =IF(E50="SINAPI",VLOOKUP($D50,SINAPI,4,0),IF(E50="SETOP",VLOOKUP($D50,SETOP,5,0),IF(E50="CPU",VLOOKUP($D50,COMPOSIÇÃO,8,0),IF(E50="COTAÇÃO",VLOOKUP($D50,COTAÇÃO,11,0),VLOOKUP(#REF!,DIVERSAS,4,0))))) -> 1990 | I50: =ROUND(H50*(1+DADOS!D12),2) -> 2392.98 | J50: =ROUND(G50*H50,2) -> 1990 | K50: =ROUND(I50*G50,2) -> 2392.98
A51: =2000 -> 2000 | D51: 1 | E51: U
A52: 1000 | B52: 3 | C52: MOVIMENTAÇÃO DE TERRA PARA O SISTEMA DE CAPTAÇÃO | J52: =SUMIF(A:A,B52,J:J) -> 21325.41 | K52: =SUMIF(A:A,B52,K:K) -> 26486.94
B53: 3.1 | C53: SERVIÇOS COMPLEMENTARES
A54: =LEFT(B54) -> 3 | B54: 3.1.1 | C54: =IF($E54="SINAPI",VLOOKUP($D54,SINAPI,2,0),IF(E54="SETOP",VLOOKUP($D54,SETOP,3,0),IF(E54="CPU",VLOOKUP($D54,COMPOSIÇÃO,2,0),IF(E54="COTAÇÃO",VLOOKUP($D54,COTAÇÃO,3,0),VLOOKUP(#REF!,DIVERSAS,2,0))))) -> LOCAÇÃO TOPOGRÁFICA ATE 20 PONTOS | D54: ED-50274 | E54: SETOP | F54: =IF(E54="SINAPI",VLOOKUP($D54,SINAPI,3,0),IF(E54="SETOP",VLOOKUP($D54,SETOP,4,0),IF(E54="CPU",VLOOKUP($D54,COMPOSIÇÃO,5,0),IF(E54="COTAÇÃO",VLOOKUP($D54,COTAÇÃO,8,0),VLOOKUP(#REF!,DIVERSAS,3,0))))) -> U | G54: =D59 -> 4 | H54: =IF(E54="SINAPI",VLOOKUP($D54,SINAPI,4,0),IF(E54="SETOP",VLOOKUP($D54,SETOP,5,0),IF(E54="CPU",VLOOKUP($D54,COMPOSIÇÃO,8,0),IF(E54="COTAÇÃO",VLOOKUP($D54,COTAÇÃO,11,0),VLOOKUP(#REF!,DIVERSAS,4,0))))) -> 82 | I54: =ROUND(H54*(1+$J$11),2) -> 101.87 | J54: =ROUND(G54*H54,2) -> 328 | K54: =ROUND(I54*G54,2) -> 407.48
A55: =2000 -> 2000 | C55: RESERVATÓRIO | D55: 1 | E55: UN
A56: =2000 -> 2000 | C56: POÇO | D56: 1 | E56: UN
A57: =2000 -> 2000 | C57: CURVA | D57: 1 | E57: UN
A58: =2000 -> 2000 | C58: CONEXÃO COM A REDE EXISTENTE | D58: 1 | E58: UN
A59: =2000 -> 2000 | C59: TOTAL | D59: =SUM(D55:D58) -> 4 | E59: UN
A60: =LEFT(B60) -> 3 | B60: 3.1.2 | C60: =IF($E60="SINAPI",VLOOKUP($D60,SINAPI,2,0),IF(E60="SETOP",VLOOKUP($D60,SETOP,3,0),IF(E60="CPU",VLOOKUP($D60,COMPOSIÇÃO,2,0),IF(E60="COTAÇÃO",VLOOKUP($D60,COTAÇÃO,3,0),VLOOKUP(#REF!,DIVERSAS,2,0))))) -> REMOÇÃO DE MEIO-FIO PRÉ-MOLDADO DE CONCRETO INCLUSIVE CARGA | D60: ED-48472 | E60: SETOP | F60: =IF(E60="SINAPI",VLOOKUP($D60,SINAPI,3,0),IF(E60="SETOP",VLOOKUP($D60,SETOP,4,0),IF(E60="CPU",VLOOKUP($D60,COMPOSIÇÃO,5,0),IF(E60="COTAÇÃO",VLOOKUP($D60,COTAÇÃO,8,0),VLOOKUP(#REF!,DIVERSAS,3,0))))) -> M | G60: =D61 -> 23.4 | H60: =IF(E60="SINAPI",VLOOKUP($D60,SINAPI,4,0),IF(E60="SETOP",VLOOKUP($D60,SETOP,5,0),IF(E60="CPU",VLOOKUP($D60,COMPOSIÇÃO,8,0),IF(E60="COTAÇÃO",VLOOKUP($D60,COTAÇÃO,11,0),VLOOKUP(#REF!,DIVERSAS,4,0))))) -> 8.03 | I60: =ROUND(H60*(1+$J$11),2) -> 9.98 | J60: =ROUND(G60*H60,2) -> 187.9 | K60: =ROUND(I60*G60,2) -> 233.53
A61: =2000 -> 2000 | C61: COMPRIMENTO | D61: 23.4 | E61: m
A62: =LEFT(B62) -> 3 | B62: 3.1.3 | C62: =IF($E62="SINAPI",VLOOKUP($D62,SINAPI,2,0),IF(E62="SETOP",VLOOKUP($D62,SETOP,3,0),IF(E62="CPU",VLOOKUP($D62,COMPOSIÇÃO,2,0),IF(E62="COTAÇÃO",VLOOKUP($D62,COTAÇÃO,3,0),VLOOKUP(#REF!,DIVERSAS,2,0))))) -> GUIA DE MEIO-FIO, EM CONCRETO COM FCK 20MPA, PRÉ-MOLDADA, MFC-01 PADRÃO DER-MG, DIMENSÕES (12X16,7X35)CM, EXCLUSIVE SARJETA, INCLUSIVE ESCAVAÇÃO, APILOAMENTO E TRANSPORTE COM RETIRADA DO MATERIAL ESCAVADO (EM CAÇAMBA) | D62: ED-51139 | E62: SETOP | F62: =IF(E62="SINAPI",VLOOKUP($D62,SINAPI,3,0),IF(E62="SETOP",VLOOKUP($D62,SETOP,4,0),IF(E62="CPU",VLOOKUP($D62,COMPOSIÇÃO,5,0),IF(E62="COTAÇÃO",VLOOKUP($D62,COTAÇÃO,8,0),VLOOKUP(#REF!,DIVERSAS,3,0))))) -> M | G62: =D63 -> 23.4 | H62: =IF(E62="SINAPI",VLOOKUP($D62,SINAPI,4,0),IF(E62="SETOP",VLOOKUP($D62,SETOP,5,0),IF(E62="CPU",VLOOKUP($D62,COMPOSIÇÃO,8,0),IF(E62="COTAÇÃO",VLOOKUP($D62,COTAÇÃO,11,0),VLOOKUP(#REF!,DIVERSAS,4,0))))) -> 41.72 | I62: =ROUND(H62*(1+$J$11),2) -> 51.83 | J62: =ROUND(G62*H62,2) -> 976.25 | K62: =ROUND(I62*G62,2) -> 1212.82
A63: =2000 -> 2000 | C63: COMPRIMENTO | D63: 23.4 | E63: m
A64: =LEFT(B64) -> 3 | B64: 3.1.4 | C64: =IF($E64="SINAPI",VLOOKUP($D64,SINAPI,2,0),IF(E64="SETOP",VLOOKUP($D64,SETOP,3,0),IF(E64="CPU",VLOOKUP($D64,COMPOSIÇÃO,2,0),IF(E64="COTAÇÃO",VLOOKUP($D64,COTAÇÃO,3,0),VLOOKUP(#REF!,DIVERSAS,2,0))))) -> REMOÇÃO DO ALAMBRADO, INCLUSIVE MOURÃO E MURETA | D64: DAC-3.1 | E64: CPU | F64: =IF(E64="SINAPI",VLOOKUP($D64,SINAPI,3,0),IF(E64="SETOP",VLOOKUP($D64,SETOP,4,0),IF(E64="CPU",VLOOKUP($D64,COMPOSIÇÃO,5,0),IF(E64="COTAÇÃO",VLOOKUP($D64,COTAÇÃO,8,0),VLOOKUP(#REF!,DIVERSAS,3,0))))) -> M | G64: =D65 -> 15.9 | H64: =IF(E64="SINAPI",VLOOKUP($D64,SINAPI,4,0),IF(E64="SETOP",VLOOKUP($D64,SETOP,5,0),IF(E64="CPU",VLOOKUP($D64,COMPOSIÇÃO,8,0),IF(E64="COTAÇÃO",VLOOKUP($D64,COTAÇÃO,11,0),VLOOKUP(#REF!,DIVERSAS,4,0))))) -> 15.9635 | I64: =ROUND(H64*(1+$J$11),2) -> 19.83 | J64: =ROUND(G64*H64,2) -> 253.82 | K64: =ROUND(I64*G64,2) -> 315.3
A65: =2000 -> 2000 | C65: COMPRIMENTO TOTAL | D65: 15.9 | E65: M
A66: =LEFT(B66) -> 3 | B66: 3.1.5 | C66: =IF($E66="SINAPI",VLOOKUP($D66,SINAPI,2,0),IF(E66="SETOP",VLOOKUP($D66,SETOP,3,0),IF(E66="CPU",VLOOKUP($D66,COMPOSIÇÃO,2,0),IF(E66="COTAÇÃO",VLOOKUP($D66,COTAÇÃO,3,0),VLOOKUP(#REF!,DIVERSAS,2,0))))) -> CERCA DE MOURÃO H = 2,80 M - MOURÃO PRÉ-FABRICADO DE CONCRETO PONTA VIRADA A CADA 2,50 M, 3 FIOS DE ARAME FARPADO E TELA GALVANIZADA # 2" FIO 12, INCLUSIVE FUNDAÇÃO | D66: ED-48386 | E66: SETOP | F66: =IF(E66="SINAPI",VLOOKUP($D66,SINAPI,3,0),IF(E66="SETOP",VLOOKUP($D66,SETOP,4,0),IF(E66="CPU",VLOOKUP($D66,COMPOSIÇÃO,5,0),IF(E66="COTAÇÃO",VLOOKUP($D66,COTAÇÃO,8,0),VLOOKUP(#REF!,DIVERSAS,3,0))))) -> M | G66: =D67 -> 15.9 | H66: =IF(E66="SINAPI",VLOOKUP($D66,SINAPI,4,0),IF(E66="SETOP",VLOOKUP($D66,SETOP,5,0),IF(E66="CPU",VLOOKUP($D66,COMPOSIÇÃO,8,0),IF(E66="COTAÇÃO",VLOOKUP($D66,COTAÇÃO,11,0),VLOOKUP(#REF!,DIVERSAS,4,0))))) -> 260.27 | I66: =ROUND(H66*(1+$J$11),2) -> 323.33 | J66: =ROUND(G66*H66,2) -> 4138.29 | K66: =ROUND(I66*G66,2) -> 5140.95
A67: =2000 -> 2000 | C67: COMPRIMENTO TOTAL | D67: 15.9 | E67: M
B68: 3.2 | C68: ESCAVAÇÃO DE VALA
A69: =LEFT(B69) -> 3 | B69: 3.2.1 | C69: =IF($E69="SINAPI",VLOOKUP($D69,SINAPI,2,0),IF(E69="SETOP",VLOOKUP($D69,SETOP,3,0),IF(E69="CPU",VLOOKUP($D69,COMPOSIÇÃO,2,0),IF(E69="COTAÇÃO",VLOOKUP($D69,COTAÇÃO,3,0),VLOOKUP(#REF!,DIVERSAS,2,0))))) -> DEMOLIÇÃO DE PASSEIO OU LAJE DE CONCRETO COM EQUIPAMENTO PNEUMÁTICO, INCLUSIVE AFASTAMENTO | D69: ED-48486 | E69: SETOP | F69: =IF(E69="SINAPI",VLOOKUP($D69,SINAPI,3,0),IF(E69="SETOP",VLOOKUP($D69,SETOP,4,0),IF(E69="CPU",VLOOKUP($D69,COMPOSIÇÃO,5,0),IF(E69="COTAÇÃO",VLOOKUP($D69,COTAÇÃO,8,0),VLOOKUP(#REF!,DIVERSAS,3,0))))) -> M2 | G69: =ROUND(D72,2) -> 50.4 | H69: =IF(E69="SINAPI",VLOOKUP($D69,SINAPI,4,0),IF(E69="SETOP",VLOOKUP($D69,SETOP,5,0),IF(E69="CPU",VLOOKUP($D69,COMPOSIÇÃO,8,0),IF(E69="COTAÇÃO",VLOOKUP($D69,COTAÇÃO,11,0),VLOOKUP(#REF!,DIVERSAS,4,0))))) -> 7.18 | I69: =ROUND(H69*(1+$J$11),2) -> 8.92 | J69: =ROUND(G69*H69,2) -> 361.87 | K69: =ROUND(I69*G69,2) -> 449.57
A70: =2000 -> 2000 | C70: COMPRIMENTO TOTAL DA REDE | D70: 84 | E70: M
A71: =2000 -> 2000 | C71: LARGURA DA VALA | D71: 0.6 | E71: M
A72: =2000 -> 2000 | C72: VOLUME DE DEMOLIÇÃO | D72: =D71*D70 -> 50.4 | E72: M2
A73: =LEFT(B73) -> 3 | B73: 3.2.2 | C73: =IF($E73="SINAPI",VLOOKUP($D73,SINAPI,2,0),IF(E73="SETOP",VLOOKUP($D73,SETOP,3,0),IF(E73="CPU",VLOOKUP($D73,COMPOSIÇÃO,2,0),IF(E73="COTAÇÃO",VLOOKUP($D73,COTAÇÃO,3,0),VLOOKUP(#REF!,DIVERSAS,2,0))))) -> ESCAVAÇÃO E CARGA MECANIZADA EM MATERIAL DE 1ª CATEGORIA | D73: ED-51105 | E73: SETOP | F73: =IF(E73="SINAPI",VLOOKUP($D73,SINAPI,3,0),IF(E73="SETOP",VLOOKUP($D73,SETOP,4,0),IF(E73="CPU",VLOOKUP($D73,COMPOSIÇÃO,5,0),IF(E73="COTAÇÃO",VLOOKUP($D73,COTAÇÃO,8,0),VLOOKUP(#REF!,DIVERSAS,3,0))))) -> M3 | G73: =ROUND(D77,2) -> 68.04 | H73: =IF(E73="SINAPI",VLOOKUP($D73,SINAPI,4,0),IF(E73="SETOP",VLOOKUP($D73,SETOP,5,0),IF(E73="CPU",VLOOKUP($D73,COMPOSIÇÃO,8,0),IF(E73="COTAÇÃO",VLOOKUP($D73,COTAÇÃO,11,0),VLOOKUP(#REF!,DIVERSAS,4,0))))) -> 3.3 | I73: =ROUND(H73*(1+$J$11),2) -> 4.1 | J73: =ROUND(G73*H73,2) -> 224.53 | K73: =ROUND(I73*G73,2) -> 278.96
A74: =2000 -> 2000 | C74: COMPRIMENTO TOTAL DA REDE | D74: 84 | E74: M
A75: =2000 -> 2000 | C75: PROFUNDIDADE MÉDIA DA REDE | D75: 1.35 | E75: M
A76: =2000 -> 2000 | C76: LARGURA DA VALA | D76: 0.6 | E76: M
A77: =2000 -> 2000 | C77: VOLUME TOTAL DE ESCAVAÇÃO | D77: =D76*D75*D74 -> 68.04 | E77: M3
B78: 3.3 | C78: PREPARO DE VALA
A79: =LEFT(B79) -> 3 | B79: 3.3.1 | C79: =IF($E79="SINAPI",VLOOKUP($D79,SINAPI,2,0),IF(E79="SETOP",VLOOKUP($D79,SETOP,3,0),IF(E79="CPU",VLOOKUP($D79,COMPOSIÇÃO,2,0),IF(E79="COTAÇÃO",VLOOKUP($D79,COTAÇÃO,3,0),VLOOKUP(#REF!,DIVERSAS,2,0))))) -> LASTRO DE AREIA | D79: ED-49814 | E79: SETOP | F79: =IF(E79="SINAPI",VLOOKUP($D79,SINAPI,3,0),IF(E79="SETOP",VLOOKUP($D79,SETOP,4,0),IF(E79="CPU",VLOOKUP($D79,COMPOSIÇÃO,5,0),IF(E79="COTAÇÃO",VLOOKUP($D79,COTAÇÃO,8,0),VLOOKUP(#REF!,DIVERSAS,3,0))))) -> M3 | G79: =D83 -> 15.12 | H79: =IF(E79="SINAPI",VLOOKUP($D79,SINAPI,4,0),IF(E79="SETOP",VLOOKUP($D79,SETOP,5,0),IF(E79="CPU",VLOOKUP($D79,COMPOSIÇÃO,8,0),IF(E79="COTAÇÃO",VLOOKUP($D79,COTAÇÃO,11,0),VLOOKUP(#REF!,DIVERSAS,4,0))))) -> 129.16 | I79: =ROUND(H79*(1+$J$11),2) -> 160.46 | J79: =ROUND(G79*H79,2) -> 1952.9 | K79: =ROUND(I79*G79,2) -> 2426.16
A80: =2000 -> 2000 | C80: COMPRIMENTO TOTAL DA REDE | D80: 84 | E80: M
A81: =2000 -> 2000 | C81: ESPESSURA DO LASTRO DE AREIA | D81: 0.3 | E81: M
A82: =2000 -> 2000 | C82: LARGURA DA VALA | D82: 0.6 | E82: M
A83: =2000 -> 2000 | C83: VOLUME TOTAL DE AREIA | D83: =D82*D81*D80 -> 15.12 | E83: M3
A84: =LEFT(B84) -> 3 | B84: 3.3.2 | C84: =IF($E84="SINAPI",VLOOKUP($D84,SINAPI,2,0),IF(E84="SETOP",VLOOKUP($D84,SETOP,3,0),IF(E84="CPU",VLOOKUP($D84,COMPOSIÇÃO,2,0),IF(E84="COTAÇÃO",VLOOKUP($D84,COTAÇÃO,3,0),VLOOKUP(#REF!,DIVERSAS,2,0))))) -> CARGA, MANOBRA E DESCARGA DE SOLOS E MATERIAIS GRANULARES EM CAMINHÃO BASCULANTE 18 M³ - CARGA COM PÁ CARREGADEIRA (CAÇAMBA DE 1,7 A 2,8 M³ / 128 HP) E DESCARGA LIVRE (UNIDADE: M3). AF_07/2020 | D84: 100976 | E84: SINAPI | F84: =IF(E84="SINAPI",VLOOKUP($D84,SINAPI,3,0),IF(E84="SETOP",VLOOKUP($D84,SETOP,4,0),IF(E84="CPU",VLOOKUP($D84,COMPOSIÇÃO,5,0),IF(E84="COTAÇÃO",VLOOKUP($D84,COTAÇÃO,8,0),VLOOKUP(#REF!,DIVERSAS,3,0))))) -> M3 | G84: =ROUND(D85,2) -> 65.52 | H84: =IF(E84="SINAPI",VLOOKUP($D84,SINAPI,4,0),IF(E84="SETOP",VLOOKUP($D84,SETOP,5,0),IF(E84="CPU",VLOOKUP($D84,COMPOSIÇÃO,8,0),IF(E84="COTAÇÃO",VLOOKUP($D84,COTAÇÃO,11,0),VLOOKUP(#REF!,DIVERSAS,4,0))))) -> 5.94 | I84: =ROUND(H84*(1+$J$11),2) -> 7.38 | J84: =ROUND(G84*H84,2) -> 389.19 | K84: =ROUND(I84*G84,2) -> 483.54
A85: =2000 -> 2000 | C85: VOLUME DE MATERIAL | D85: =D83+D72 -> 65.52 | E85: M3
A86: =LEFT(B86) -> 3 | B86: 3.3.3 | C86: =IF($E86="SINAPI",VLOOKUP($D86,SINAPI,2,0),IF(E86="SETOP",VLOOKUP($D86,SETOP,3,0),IF(E86="CPU",VLOOKUP($D86,COMPOSIÇÃO,2,0),IF(E86="COTAÇÃO",VLOOKUP($D86,COTAÇÃO,3,0),VLOOKUP(#REF!,DIVERSAS,2,0))))) -> TRANSPORTE COM CAMINHÃO BASCULANTE DE 6 M³, EM VIA URBANA PAVIMENTADA, DMT ATÉ 30 KM (UNIDADE: M3XKM). AF_07/2020 | D86: 97914 | E86: SINAPI | F86: =IF(E86="SINAPI",VLOOKUP($D86,SINAPI,3,0),IF(E86="SETOP",VLOOKUP($D86,SETOP,4,0),IF(E86="CPU",VLOOKUP($D86,COMPOSIÇÃO,5,0),IF(E86="COTAÇÃO",VLOOKUP($D86,COTAÇÃO,8,0),VLOOKUP(#REF!,DIVERSAS,3,0))))) -> M3XKM | G86: =ROUND(D89,2) -> 1559.38 | H86: =IF(E86="SINAPI",VLOOKUP($D86,SINAPI,4,0),IF(E86="SETOP",VLOOKUP($D86,SETOP,5,0),IF(E86="CPU",VLOOKUP($D86,COMPOSIÇÃO,8,0),IF(E86="COTAÇÃO",VLOOKUP($D86,COTAÇÃO,11,0),VLOOKUP(#REF!,DIVERSAS,4,0))))) -> 1.95 | I86: =ROUND(H86*(1+$J$11),2) -> 2.42 | J86: =ROUND(G86*H86,2) -> 3040.79 | K86: =ROUND(I86*G86,2) -> 3773.7
A87: =2000 -> 2000 | C87: VOLUME DE MATERIAL | D87: =D85 -> 65.52 | E87: M3
A88: =2000 -> 2000 | C88: DISTÂNCIA DE TRANSPORTE | D88: 23.8 | E88: KM
A89: =2000 -> 2000 | C89: VOLUME X DISTÂNCIA DE TRANSPORTE | D89: =D87*D88 -> 1559.376 | E89: M3XKM
A90: =LEFT(B90) -> 3 | B90: 3.3.4 | C90: =IF($E90="SINAPI",VLOOKUP($D90,SINAPI,2,0),IF(E90="SETOP",VLOOKUP($D90,SETOP,3,0),IF(E90="CPU",VLOOKUP($D90,COMPOSIÇÃO,2,0),IF(E90="COTAÇÃO",VLOOKUP($D90,COTAÇÃO,3,0),VLOOKUP(#REF!,DIVERSAS,2,0))))) -> LASTRO DE BRITA 2 OU 3 APILOADO MANUALMENTE | D90: ED-49813 | E90: SETOP | F90: =IF(E90="SINAPI",VLOOKUP($D90,SINAPI,3,0),IF(E90="SETOP",VLOOKUP($D90,SETOP,4,0),IF(E90="CPU",VLOOKUP($D90,COMPOSIÇÃO,5,0),IF(E90="COTAÇÃO",VLOOKUP($D90,COTAÇÃO,8,0),VLOOKUP(#REF!,DIVERSAS,3,0))))) -> M3 | G90: =D94 -> 5.04 | H90: =IF(E90="SINAPI",VLOOKUP($D90,SINAPI,4,0),IF(E90="SETOP",VLOOKUP($D90,SETOP,5,0),IF(E90="CPU",VLOOKUP($D90,COMPOSIÇÃO,8,0),IF(E90="COTAÇÃO",VLOOKUP($D90,COTAÇÃO,11,0),VLOOKUP(#REF!,DIVERSAS,4,0))))) -> 119.82 | I90: =ROUND(H90*(1+$J$11),2) -> 148.85 | J90: =ROUND(G90*H90,2) -> 603.89 | K90: =ROUND(I90*G90,2) -> 750.2
A91: =2000 -> 2000 | C91: COMPRIMENTO TOTAL DA REDE | D91: 84 | E91: M
A92: =2000 -> 2000 | C92: ESPESSURA DO LASTRO DE BRITA | D92: 0.1 | E92: M
A93: =2000 -> 2000 | C93: LARGURA DA VALA | D93: 0.6 | E93: M
A94: =2000 -> 2000 | C94: VOLUME TOTAL DE BRITA | D94: =D93*D92*D91 -> 5.04 | E94: M3
A95: =LEFT(B95) -> 3 | B95: 3.3.5 | C95: =IF($E95="SINAPI",VLOOKUP($D95,SINAPI,2,0),IF(E95="SETOP",VLOOKUP($D95,SETOP,3,0),IF(E95="CPU",VLOOKUP($D95,COMPOSIÇÃO,2,0),IF(E95="COTAÇÃO",VLOOKUP($D95,COTAÇÃO,3,0),VLOOKUP(#REF!,DIVERSAS,2,0))))) -> CARGA, MANOBRA E DESCARGA DE SOLOS E MATERIAIS GRANULARES EM CAMINHÃO BASCULANTE 18 M³ - CARGA COM PÁ CARREGADEIRA (CAÇAMBA DE 1,7 A 2,8 M³ / 128 HP) E DESCARGA LIVRE (UNIDADE: M3). AF_07/2020 | D95: 100976 | E95: SINAPI | F95: =IF(E95="SINAPI",VLOOKUP($D95,SINAPI,3,0),IF(E95="SETOP",VLOOKUP($D95,SETOP,4,0),IF(E95="CPU",VLOOKUP($D95,COMPOSIÇÃO,5,0),IF(E95="COTAÇÃO",VLOOKUP($D95,COTAÇÃO,8,0),VLOOKUP(#REF!,DIVERSAS,3,0))))) -> M3 | G95: =ROUND(D96,2) -> 20.16 | H95: =IF(E95="SINAPI",VLOOKUP($D95,SINAPI,4,0),IF(E95="SETOP",VLOOKUP($D95,SETOP,5,0),IF(E95="CPU",VLOOKUP($D95,COMPOSIÇÃO,8,0),IF(E95="COTAÇÃO",VLOOKUP($D95,COTAÇÃO,11,0),VLOOKUP(#REF!,DIVERSAS,4,0))))) -> 5.94 | I95: =ROUND(H95*(1+$J$11),2) -> 7.38 | J95: =ROUND(G95*H95,2) -> 119.75 | K95: =ROUND(I95*G95,2) -> 148.78
A96: =2000 -> 2000 | C96: VOLUME DE MATERIAL | D96: =D94+D83 -> 20.16 | E96: M3
A97: =LEFT(B97) -> 3 | B97: 3.3.6 | C97: =IF($E97="SINAPI",VLOOKUP($D97,SINAPI,2,0),IF(E97="SETOP",VLOOKUP($D97,SETOP,3,0),IF(E97="CPU",VLOOKUP($D97,COMPOSIÇÃO,2,0),IF(E97="COTAÇÃO",VLOOKUP($D97,COTAÇÃO,3,0),VLOOKUP(#REF!,DIVERSAS,2,0))))) -> TRANSPORTE COM CAMINHÃO BASCULANTE DE 6 M³, EM VIA URBANA PAVIMENTADA, DMT ATÉ 30 KM (UNIDADE: M3XKM). AF_07/2020 | D97: 97914 | E97: SINAPI | F97: =IF(E97="SINAPI",VLOOKUP($D97,SINAPI,3,0),IF(E97="SETOP",VLOOKUP($D97,SETOP,4,0),IF(E97="CPU",VLOOKUP($D97,COMPOSIÇÃO,5,0),IF(E97="COTAÇÃO",VLOOKUP($D97,COTAÇÃO,8,0),VLOOKUP(#REF!,DIVERSAS,3,0))))) -> M3XKM | G97: =ROUND(D100,2) -> 479.81 | H97: =IF(E97="SINAPI",VLOOKUP($D97,SINAPI,4,0),IF(E97="SETOP",VLOOKUP($D97,SETOP,5,0),IF(E97="CPU",VLOOKUP($D97,COMPOSIÇÃO,8,0),IF(E97="COTAÇÃO",VLOOKUP($D97,COTAÇÃO,11,0),VLOOKUP(#REF!,DIVERSAS,4,0))))) -> 1.95 | I97: =ROUND(H97*(1+$J$11),2) -> 2.42 | J97: =ROUND(G97*H97,2) -> 935.63 | K97: =ROUND(I97*G97,2) -> 1161.14
A98: =2000 -> 2000 | C98: VOLUME DE MATERIAL | D98: =D96 -> 20.16 | E98: M3
A99: =2000 -> 2000 | C99: DISTÂNCIA DE TRANSPORTE | D99: 23.8 | E99: KM
A100: =2000 -> 2000 | C100: VOLUME X DISTÂNCIA DE TRANSPORTE | D100: =D98*D99 -> 479.808 | E100: M3XKM
B101: 3.4 | C101: REATERRO DE VALA E EXECUÇÃO DO PASSEIO
A102: =LEFT(B102) -> 3 | B102: 3.4.1 | C102: =IF($E102="SINAPI",VLOOKUP($D102,SINAPI,2,0),IF(E102="SETOP",VLOOKUP($D102,SETOP,3,0),IF(E102="CPU",VLOOKUP($D102,COMPOSIÇÃO,2,0),IF(E102="COTAÇÃO",VLOOKUP($D102,COTAÇÃO,3,0),VLOOKUP(#REF!,DIVERSAS,2,0))))) -> REATERRO COMPACTADO DE VALA COM EQUIPAMENTO PLACA VIBRATÓRIA | D102: ED-51121 | E102: SETOP | F102: =IF(E102="SINAPI",VLOOKUP($D102,SINAPI,3,0),IF(E102="SETOP",VLOOKUP($D102,SETOP,4,0),IF(E102="CPU",VLOOKUP($D102,COMPOSIÇÃO,5,0),IF(E102="COTAÇÃO",VLOOKUP($D102,COTAÇÃO,8,0),VLOOKUP(#REF!,DIVERSAS,3,0))))) -> M3 | G102: =ROUND(D107,2) -> 43.85 | H102: =IF(E102="SINAPI",VLOOKUP($D102,SINAPI,4,0),IF(E102="SETOP",VLOOKUP($D102,SETOP,5,0),IF(E102="CPU",VLOOKUP($D102,COMPOSIÇÃO,8,0),IF(E102="COTAÇÃO",VLOOKUP($D102,COTAÇÃO,11,0),VLOOKUP(#REF!,DIVERSAS,4,0))))) -> 30.06 | I102: =ROUND(H102*(1+$J$11),2) -> 37.34 | J102: =ROUND(G102*H102,2) -> 1318.13 | K102: =ROUND(I102*G102,2) -> 1637.36
A103: =2000 -> 2000 | C103: VOLUME ESCAVADO | D103: =D77 -> 68.04 | E103: M3
A104: =2000 -> 2000 | C104: VOLUME LASTRO DE AREIA | D104: =D74*0.3*D76 -> 15.12 | E104: M3
A105: =2000 -> 2000 | C105: VOLUME LASTRO DE BRITA | D105: =D74*0.1*D76 -> 5.04 | E105: M3
A106: =2000 -> 2000 | C106: VOLUME CAMADA DE CONCRETO | D106: =D76*D74*0.08 -> 4.032 | E106: M3
A107: =2000 -> 2000 | C107: VOLUME DE REATERRO | D107: =D103-D106-D104-D105 -> 43.848 | E107: M3
A108: =LEFT(B108) -> 3 | B108: 3.4.2 | C108: =IF($E108="SINAPI",VLOOKUP($D108,SINAPI,2,0),IF(E108="SETOP",VLOOKUP($D108,SETOP,3,0),IF(E108="CPU",VLOOKUP($D108,COMPOSIÇÃO,2,0),IF(E108="COTAÇÃO",VLOOKUP($D108,COTAÇÃO,3,0),VLOOKUP(#REF!,DIVERSAS,2,0))))) -> EXECUÇÃO DE PASSEIO (CALÇADA) OU PISO DE CONCRETO COM CONCRETO MOLDADO IN LOCO, FEITO EM OBRA, ACABAMENTO CONVENCIONAL, ESPESSURA 8 CM, ARMADO. AF_07/2016 | D108: 94994 | E108: SINAPI | F108: =IF(E108="SINAPI",VLOOKUP($D108,SINAPI,3,0),IF(E108="SETOP",VLOOKUP($D108,SETOP,4,0),IF(E108="CPU",VLOOKUP($D108,COMPOSIÇÃO,5,0),IF(E108="COTAÇÃO",VLOOKUP($D108,COTAÇÃO,8,0),VLOOKUP(#REF!,DIVERSAS,3,0))))) -> M2 | G108: =ROUND(D111,2) -> 50.4 | H108: =IF(E108="SINAPI",VLOOKUP($D108,SINAPI,4,0),IF(E108="SETOP",VLOOKUP($D108,SETOP,5,0),IF(E108="CPU",VLOOKUP($D108,COMPOSIÇÃO,8,0),IF(E108="COTAÇÃO",VLOOKUP($D108,COTAÇÃO,11,0),VLOOKUP(#REF!,DIVERSAS,4,0))))) -> 112.57 | I108: =ROUND(H108*(1+$J$11),2) -> 139.85 | J108: =ROUND(G108*H108,2) -> 5673.53 | K108: =ROUND(I108*G108,2) -> 7048.44
A109: =2000 -> 2000 | C109: COMPRIMENTO TOTAL DA REDE | D109: 84 | E109: M
A110: =2000 -> 2000 | C110: LARGURA DA VALA | D110: 0.6 | E110: M
A111: =2000 -> 2000 | C111: ÁREA TOTAL | D111: =D109*D110 -> 50.4 | E111: M2
A112: =LEFT(B112) -> 3 | B112: 3.4.3 | C112: =IF($E112="SINAPI",VLOOKUP($D112,SINAPI,2,0),IF(E112="SETOP",VLOOKUP($D112,SETOP,3,0),IF(E112="CPU",VLOOKUP($D112,COMPOSIÇÃO,2,0),IF(E112="COTAÇÃO",VLOOKUP($D112,COTAÇÃO,3,0),VLOOKUP(#REF!,DIVERSAS,2,0))))) -> CARGA, MANOBRA E DESCARGA DE ENTULHO EM CAMINHÃO BASCULANTE 6 M³ - CARGA COM ESCAVADEIRA HIDRÁULICA (CAÇAMBA DE 0,80 M³ / 111 HP) E DESCARGA LIVRE (UNIDADE: M3). AF_07/2020 | D112: 100981 | E112: SINAPI | F112: =IF(E112="SINAPI",VLOOKUP($D112,SINAPI,3,0),IF(E112="SETOP",VLOOKUP($D112,SETOP,4,0),IF(E112="CPU",VLOOKUP($D112,COMPOSIÇÃO,5,0),IF(E112="COTAÇÃO",VLOOKUP($D112,COTAÇÃO,8,0),VLOOKUP(#REF!,DIVERSAS,3,0))))) -> M3 | G112: =ROUND(D115,2) -> 24.19 | H112: =IF(E112="SINAPI",VLOOKUP($D112,SINAPI,4,0),IF(E112="SETOP",VLOOKUP($D112,SETOP,5,0),IF(E112="CPU",VLOOKUP($D112,COMPOSIÇÃO,8,0),IF(E112="COTAÇÃO",VLOOKUP($D112,COTAÇÃO,11,0),VLOOKUP(#REF!,DIVERSAS,4,0))))) -> 6.26 | I112: =ROUND(H112*(1+$J$11),2) -> 7.78 | J112: =ROUND(G112*H112,2) -> 151.43 | K112: =ROUND(I112*G112,2) -> 188.2
A113: =2000 -> 2000 | C113: VOLUME DE ESCAVAÇÃO | D113: =D77 -> 68.04 | E113: M3
A114: =2000 -> 2000 | C114: VOLUME DE REATERRO | D114: =D107 -> 43.848 | E114: M3
A115: =2000 -> 2000 | C115: VOLUME DE BOTA FORA | D115: =D113-D114 -> 24.192 | E115: M3
A116: =LEFT(B116) -> 3 | B116: 3.4.4 | C116: =IF($E116="SINAPI",VLOOKUP($D116,SINAPI,2,0),IF(E116="SETOP",VLOOKUP($D116,SETOP,3,0),IF(E116="CPU",VLOOKUP($D116,COMPOSIÇÃO,2,0),IF(E116="COTAÇÃO",VLOOKUP($D116,COTAÇÃO,3,0),VLOOKUP(#REF!,DIVERSAS,2,0))))) -> TRANSPORTE COM CAMINHÃO BASCULANTE DE 6 M³, EM VIA URBANA PAVIMENTADA, DMT ATÉ 30 KM (UNIDADE: M3XKM). AF_07/2020 | D116: 97914 | E116: SINAPI | F116: =IF(E116="SINAPI",VLOOKUP($D116,SINAPI,3,0),IF(E116="SETOP",VLOOKUP($D116,SETOP,4,0),IF(E116="CPU",VLOOKUP($D116,COMPOSIÇÃO,5,0),IF(E116="COTAÇÃO",VLOOKUP($D116,COTAÇÃO,8,0),VLOOKUP(#REF!,DIVERSAS,3,0))))) -> M3XKM | G116: =ROUND(D119,2) -> 341.11 | H116: =IF(E116="SINAPI",VLOOKUP($D116,SINAPI,4,0),IF(E116="SETOP",VLOOKUP($D116,SETOP,5,0),IF(E116="CPU",VLOOKUP($D116,COMPOSIÇÃO,8,0),IF(E116="COTAÇÃO",VLOOKUP($D116,COTAÇÃO,11,0),VLOOKUP(#REF!,DIVERSAS,4,0))))) -> 1.95 | I116: =ROUND(H116*(1+$J$11),2) -> 2.42 | J116: =ROUND(G116*H116,2) -> 665.16 | K116: =ROUND(I116*G116,2) -> 825.49
A117: =2000 -> 2000 | C117: VOLUME DE MATERIAL | D117: =D115 -> 24.192 | E117: M3
A118: =2000 -> 2000 | C118: DISTÂNCIA DE TRANSPORTE | D118: 14.1 | E118: KM
A119: =2000 -> 2000 | C119: VOLUME X DISTÂNCIA DE TRANSPORTE | D119: =D117*D118 -> 341.1072 | E119: M3XKM
A120: =LEFT(B120) -> 3 | B120: 3.4.5 | C120: =IF($E120="SINAPI",VLOOKUP($D120,SINAPI,2,0),IF(E120="SETOP",VLOOKUP($D120,SETOP,3,0),IF(E120="CPU",VLOOKUP($D120,COMPOSIÇÃO,2,0),IF(E120="COTAÇÃO",VLOOKUP($D120,COTAÇÃO,3,0),VLOOKUP(#REF!,DIVERSAS,2,0))))) -> ESPALHAMENTO DE MATERIAL EM BOTA-FORA | D120: RO-42263 | E120: SETOP | F120: =IF(E120="SINAPI",VLOOKUP($D120,SINAPI,3,0),IF(E120="SETOP",VLOOKUP($D120,SETOP,4,0),IF(E120="CPU",VLOOKUP($D120,COMPOSIÇÃO,5,0),IF(E120="COTAÇÃO",VLOOKUP($D120,COTAÇÃO,8,0),VLOOKUP(#REF!,DIVERSAS,3,0))))) -> M3 | G120: =ROUND(D121,2) -> 24.19 | H120: =IF(E120="SINAPI",VLOOKUP($D120,SINAPI,4,0),IF(E120="SETOP",VLOOKUP($D120,SETOP,5,0),IF(E120="CPU",VLOOKUP($D120,COMPOSIÇÃO,8,0),IF(E120="COTAÇÃO",VLOOKUP($D120,COTAÇÃO,11,0),VLOOKUP(#REF!,DIVERSAS,4,0))))) -> 0.18 | I120: =ROUND(H120*(1+$J$11),2) -> 0.22 | J120: =ROUND(G120*H120,2) -> 4.35 | K120: =ROUND(I120*G120,2) -> 5.32
A121: =2000 -> 2000 | C121: VOLUME DE CARGA | D121: =D117 -> 24.192 | E121: M3
A122: 1000 | B122: 4 | C122: SISTEMA DE CAPTAÇÃO DE ÁGUA | J122: =SUMIF(A:A,B122,J:J) -> 4838.38 | K122: =SUMIF(A:A,B122,K:K) -> 6199.56
B123: 4.1 | C123: TUBULAÇÃO
A124: =LEFT(B124) -> 4 | B124: 4.1.1 | C124: =IF($E124="SINAPI",VLOOKUP($D124,SINAPI,2,0),IF(E124="SETOP",VLOOKUP($D124,SETOP,3,0),IF(E124="CPU",VLOOKUP($D124,COMPOSIÇÃO,2,0),IF(E124="COTAÇÃO",VLOOKUP($D124,COTAÇÃO,3,0),VLOOKUP(#REF!,DIVERSAS,2,0))))) -> TUBO PVC PBA JEI, CLASSE 12, DN 50 MM, PARA REDE DE AGUA (NBR 5647) | D124: 36084 | E124: SINAPI | F124: =IF(E124="SINAPI",VLOOKUP($D124,SINAPI,3,0),IF(E124="SETOP",VLOOKUP($D124,SETOP,4,0),IF(E124="CPU",VLOOKUP($D124,COMPOSIÇÃO,5,0),IF(E124="COTAÇÃO",VLOOKUP($D124,COTAÇÃO,8,0),VLOOKUP(#REF!,DIVERSAS,3,0))))) -> M | G124: =D125 -> 225.3 | H124: =IF(E124="SINAPI",VLOOKUP($D124,SINAPI,4,0),IF(E124="SETOP",VLOOKUP($D124,SETOP,5,0),IF(E124="CPU",VLOOKUP($D124,COMPOSIÇÃO,8,0),IF(E124="COTAÇÃO",VLOOKUP($D124,COTAÇÃO,11,0),VLOOKUP(#REF!,DIVERSAS,4,0))))) -> 19.24 | I124: =ROUND(H124*(1+$J$11),2) -> 23.9 | J124: =ROUND(G124*H124,2) -> 4334.77 | K124: =ROUND(I124*G124,2) -> 5384.67
A125: =2000 -> 2000 | C125: COMPRIMENTO TOTAL DA REDE | D125: 225.3 | E125: M
A126: =LEFT(B126) -> 4 | B126: 4.1.2 | C126: =IF($E126="SINAPI",VLOOKUP($D126,SINAPI,2,0),IF(E126="SETOP",VLOOKUP($D126,SETOP,3,0),IF(E126="CPU",VLOOKUP($D126,COMPOSIÇÃO,2,0),IF(E126="COTAÇÃO",VLOOKUP($D126,COTAÇÃO,3,0),VLOOKUP(#REF!,DIVERSAS,2,0))))) -> ASSENTAMENTO DE TUBO DE PVC PBA PARA REDE DE ÁGUA, DN 50 MM, JUNTA ELÁSTICA INTEGRADA, INSTALADO EM LOCAL COM NÍVEL BAIXO DE INTERFERÊNCIAS (NÃO INCLUI FORNECIMENTO). AF_11/2017 | D126: 97124 | E126: SINAPI | F126: =IF(E126="SINAPI",VLOOKUP($D126,SINAPI,3,0),IF(E126="SETOP",VLOOKUP($D126,SETOP,4,0),IF(E126="CPU",VLOOKUP($D126,COMPOSIÇÃO,5,0),IF(E126="COTAÇÃO",VLOOKUP($D126,COTAÇÃO,8,0),VLOOKUP(#REF!,DIVERSAS,3,0))))) -> M | G126: =D127 -> 225.3 | H126: =IF(E126="SINAPI",VLOOKUP($D126,SINAPI,4,0),IF(E126="SETOP",VLOOKUP($D126,SETOP,5,0),IF(E126="CPU",VLOOKUP($D126,COMPOSIÇÃO,8,0),IF(E126="COTAÇÃO",VLOOKUP($D126,COTAÇÃO,11,0),VLOOKUP(#REF!,DIVERSAS,4,0))))) -> 0.68 | I126: =ROUND(H126*(1+$J$11),2) -> 0.84 | J126: S | K126: =ROUND(I126*G126,2) -> 189.25
A127: =2000 -> 2000 | C127: COMPRIMENTO TOTAL DA REDE | D127: =D125 -> 225.3 | E127: M
A128: =LEFT(B128) -> 4 | B128: 4.1.3 | C128: =IF($E128="SINAPI",VLOOKUP($D128,SINAPI,2,0),IF(E128="SETOP",VLOOKUP($D128,SETOP,3,0),IF(E128="CPU",VLOOKUP($D128,COMPOSIÇÃO,2,0),IF(E128="COTAÇÃO",VLOOKUP($D128,COTAÇÃO,3,0),VLOOKUP(#REF!,DIVERSAS,2,0))))) -> CURVA PVC PBA, JE, PB, 90 GRAUS, DN 50 / DE 60 MM, PARA REDE AGUA (NBR 10351) | D128: DAC-4.2 | E128: CPU | F128: =IF(E128="SINAPI",VLOOKUP($D128,SINAPI,3,0),IF(E128="SETOP",VLOOKUP($D128,SETOP,4,0),IF(E128="CPU",VLOOKUP($D128,COMPOSIÇÃO,5,0),IF(E128="COTAÇÃO",VLOOKUP($D128,COTAÇÃO,8,0),VLOOKUP(#REF!,DIVERSAS,3,0))))) -> UN | G128: =D129 -> 7 | H128: =IF(E128="SINAPI",VLOOKUP($D128,SINAPI,4,0),IF(E128="SETOP",VLOOKUP($D128,SETOP,5,0),IF(E128="CPU",VLOOKUP($D128,COMPOSIÇÃO,8,0),IF(E128="COTAÇÃO",VLOOKUP($D128,COTAÇÃO,11,0),VLOOKUP(#REF!,DIVERSAS,4,0))))) -> 45.35928 | I128: =ROUND(H128*(1+$J$11),2) -> 56.35 | J128: =ROUND(G128*H128,2) -> 317.51 | K128: =ROUND(I128*G128,2) -> 394.45
A129: =2000 -> 2000 | C129: QUANTIDADE | D129: 7 | E129: U
B130: 4.2 | C130: LIGAÇÃO À REDE EXISTENTE
A131: =LEFT(B131) -> 4 | B131: 4.2.1 | C131: =IF($E131="SINAPI",VLOOKUP($D131,SINAPI,2,0),IF(E131="SETOP",VLOOKUP($D131,SETOP,3,0),IF(E131="CPU",VLOOKUP($D131,COMPOSIÇÃO,2,0),IF(E131="COTAÇÃO",VLOOKUP($D131,COTAÇÃO,3,0),VLOOKUP(#REF!,DIVERSAS,2,0))))) -> REGISTRO DE GAVETA BRUTO, LATÃO, ROSCÁVEL, 2, INSTALADO EM RESERVAÇÃO DE ÁGUA DE EDIFICAÇÃO QUE POSSUA RESERVATÓRIO DE FIBRA/FIBROCIMENTO  FORNECIMENTO E INSTALAÇÃO. AF_06/2016 | D131: 94498 | E131: SINAPI | F131: =IF(E131="SINAPI",VLOOKUP($D131,SINAPI,3,0),IF(E131="SETOP",VLOOKUP($D131,SETOP,4,0),IF(E131="CPU",VLOOKUP($D131,COMPOSIÇÃO,5,0),IF(E131="COTAÇÃO",VLOOKUP($D131,COTAÇÃO,8,0),VLOOKUP(#REF!,DIVERSAS,3,0))))) -> UN | G131: =ROUND(D132,2) -> 1 | H131: =IF(E131="SINAPI",VLOOKUP($D131,SINAPI,4,0),IF(E131="SETOP",VLOOKUP($D131,SETOP,5,0),IF(E131="CPU",VLOOKUP($D131,COMPOSIÇÃO,8,0),IF(E131="COTAÇÃO",VLOOKUP($D131,COTAÇÃO,11,0),VLOOKUP(#REF!,DIVERSAS,4,0))))) -> 144.01 | I131: =ROUND(H131*(1+$J$11),2) -> 178.9 | J131: =ROUND(G131*H131,2) -> 144.01 | K131: =ROUND(I131*G131,2) -> 178.9
A132: =2000 -> 2000 | C132: QUANTIDADE | D132: 1 | E132: U
A133: =LEFT(B133) -> 4 | B133: 4.2.2 | C133: =IF($E133="SINAPI",VLOOKUP($D133,SINAPI,2,0),IF(E133="SETOP",VLOOKUP($D133,SETOP,3,0),IF(E133="CPU",VLOOKUP($D133,COMPOSIÇÃO,2,0),IF(E133="COTAÇÃO",VLOOKUP($D133,COTAÇÃO,3,0),VLOOKUP(#REF!,DIVERSAS,2,0))))) -> LUVA DE CORRER, PVC PBA, JE, DN 50 / DE 60 MM, PARA REDE AGUA (NBR 10351) - FORNECIMENTO E INSTALAÇÃO | D133: DAC-4.1 | E133: CPU | F133: =IF(E133="SINAPI",VLOOKUP($D133,SINAPI,3,0),IF(E133="SETOP",VLOOKUP($D133,SETOP,4,0),IF(E133="CPU",VLOOKUP($D133,COMPOSIÇÃO,5,0),IF(E133="COTAÇÃO",VLOOKUP($D133,COTAÇÃO,8,0),VLOOKUP(#REF!,DIVERSAS,3,0))))) -> UN | G133: =D134 -> 1 | H133: =IF(E133="SINAPI",VLOOKUP($D133,SINAPI,4,0),IF(E133="SETOP",VLOOKUP($D133,SETOP,5,0),IF(E133="CPU",VLOOKUP($D133,COMPOSIÇÃO,8,0),IF(E133="COTAÇÃO",VLOOKUP($D133,COTAÇÃO,11,0),VLOOKUP(#REF!,DIVERSAS,4,0))))) -> 19.73928 | I133: =ROUND(H133*(1+$J$11),2) -> 24.52 | J133: =ROUND(G133*H133,2) -> 19.74 | K133: =ROUND(I133*G133,2) -> 24.52
A134: =2000 -> 2000 | C134: QUANTIDADE | D134: 1 | E134: U
A135: =LEFT(B135) -> 4 | B135: 4.2.3 | C135: =IF($E135="SINAPI",VLOOKUP($D135,SINAPI,2,0),IF(E135="SETOP",VLOOKUP($D135,SETOP,3,0),IF(E135="CPU",VLOOKUP($D135,COMPOSIÇÃO,2,0),IF(E135="COTAÇÃO",VLOOKUP($D135,COTAÇÃO,3,0),VLOOKUP(#REF!,DIVERSAS,2,0))))) -> TÊ, PPR, DN 50 MM, CLASSE PN 25, INSTALADO EM RESERVAÇÃO DE ÁGUA DE EDIFICAÇÃO QUE POSSUA RESERVATÓRIO DE FIBRA/FIBROCIMENTO  FORNECIMENTO E INSTALAÇÃO. AF_06/2016 | D135: 96760 | E135: SINAPI | F135: =IF(E135="SINAPI",VLOOKUP($D135,SINAPI,3,0),IF(E135="SETOP",VLOOKUP($D135,SETOP,4,0),IF(E135="CPU",VLOOKUP($D135,COMPOSIÇÃO,5,0),IF(E135="COTAÇÃO",VLOOKUP($D135,COTAÇÃO,8,0),VLOOKUP(#REF!,DIVERSAS,3,0))))) -> UN | G135: =D136 -> 1 | H135: =IF(E135="SINAPI",VLOOKUP($D135,SINAPI,4,0),IF(E135="SETOP",VLOOKUP($D135,SETOP,5,0),IF(E135="CPU",VLOOKUP($D135,COMPOSIÇÃO,8,0),IF(E135="COTAÇÃO",VLOOKUP($D135,COTAÇÃO,11,0),VLOOKUP(#REF!,DIVERSAS,4,0))))) -> 22.35 | I135: =ROUND(H135*(1+$J$11),2) -> 27.77 | J135: =ROUND(G135*H135,2) -> 22.35 | K135: =ROUND(I135*G135,2) -> 27.77
A136: =2000 -> 2000 | C136: QUANTIDADE | D136: 1 | E136: UN
A137: 1000 | B137: 5 | C137: RESERVATÓRIO DE ÁGUA | J137: =SUMIF(A:A,B137,J:J) -> 72215.21 | K137: =SUMIF(A:A,B137,K:K) -> 87981.64
B138: 5.1 | C138: FUNDAÇÃO
A139: =LEFT(B139) -> 5 | B139: 5.1.1 | C139: =IF($E139="SINAPI",VLOOKUP($D139,SINAPI,2,0),IF(E139="SETOP",VLOOKUP($D139,SETOP,3,0),IF(E139="CPU",VLOOKUP($D139,COMPOSIÇÃO,2,0),IF(E139="COTAÇÃO",VLOOKUP($D139,COTAÇÃO,3,0),VLOOKUP(#REF!,DIVERSAS,2,0))))) -> FORNECIMENTO DE CONCRETO ESTRUTURAL, USINADO, COM FCK 30 MPA, INCLUSIVE LANÇAMENTO, ADENSAMENTO E ACABAMENTO (FUNDAÇÃO) | D139: ED-49799 | E139: SETOP | F139: =IF(E139="SINAPI",VLOOKUP($D139,SINAPI,3,0),IF(E139="SETOP",VLOOKUP($D139,SETOP,4,0),IF(E139="CPU",VLOOKUP($D139,COMPOSIÇÃO,5,0),IF(E139="COTAÇÃO",VLOOKUP($D139,COTAÇÃO,8,0),VLOOKUP(#REF!,DIVERSAS,3,0))))) -> M3 | G139: =D140 -> 14.56 | H139: =IF(E139="SINAPI",VLOOKUP($D139,SINAPI,4,0),IF(E139="SETOP",VLOOKUP($D139,SETOP,5,0),IF(E139="CPU",VLOOKUP($D139,COMPOSIÇÃO,8,0),IF(E139="COTAÇÃO",VLOOKUP($D139,COTAÇÃO,11,0),VLOOKUP(#REF!,DIVERSAS,4,0))))) -> 420.88 | I139: =ROUND(H139*(1+$J$11),2) -> 522.86 | J139: =ROUND(G139*H139,2) -> 6128.01 | K139: =ROUND(I139*G139,2) -> 7612.84
A140: =2000 -> 2000 | C140: VOLUME DE CONCRETO | D140: =14.56 -> 14.56 | E140: M3
A141: =LEFT(B141) -> 5 | B141: 5.1.2 | C141: =IF($E141="SINAPI",VLOOKUP($D141,SINAPI,2,0),IF(E141="SETOP",VLOOKUP($D141,SETOP,3,0),IF(E141="CPU",VLOOKUP($D141,COMPOSIÇÃO,2,0),IF(E141="COTAÇÃO",VLOOKUP($D141,COTAÇÃO,3,0),VLOOKUP(#REF!,DIVERSAS,2,0))))) -> CORTE, DOBRA E MONTAGEM DE AÇO CA-50/60 | D141: ED-48298 | E141: SETOP | F141: =IF(E141="SINAPI",VLOOKUP($D141,SINAPI,3,0),IF(E141="SETOP",VLOOKUP($D141,SETOP,4,0),IF(E141="CPU",VLOOKUP($D141,COMPOSIÇÃO,5,0),IF(E141="COTAÇÃO",VLOOKUP($D141,COTAÇÃO,8,0),VLOOKUP(#REF!,DIVERSAS,3,0))))) -> KG | G141: =D142 -> 194.7 | H141: =IF(E141="SINAPI",VLOOKUP($D141,SINAPI,4,0),IF(E141="SETOP",VLOOKUP($D141,SETOP,5,0),IF(E141="CPU",VLOOKUP($D141,COMPOSIÇÃO,8,0),IF(E141="COTAÇÃO",VLOOKUP($D141,COTAÇÃO,11,0),VLOOKUP(#REF!,DIVERSAS,4,0))))) -> 12.96 | I141: =ROUND(H141*(1+$J$11),2) -> 16.1 | J141: =ROUND(G141*H141,2) -> 2523.31 | K141: =ROUND(I141*G141,2) -> 3134.67
A142: =2000 -> 2000 | C142: QUANTIDADE DE AÇO | D142: 194.7 | E142: KG
A143: =LEFT(B143) -> 5 | B143: 5.1.3 | C143: =IF($E143="SINAPI",VLOOKUP($D143,SINAPI,2,0),IF(E143="SETOP",VLOOKUP($D143,SETOP,3,0),IF(E143="CPU",VLOOKUP($D143,COMPOSIÇÃO,2,0),IF(E143="COTAÇÃO",VLOOKUP($D143,COTAÇÃO,3,0),VLOOKUP(#REF!,DIVERSAS,2,0))))) -> ESCAVAÇÃO MECANIZADA PARA BLOCO DE COROAMENTO OU SAPATA, COM PREVISÃO DE FÔRMA, COM RETROESCAVADEIRA. AF_06/2017 | D143: 96521 | E143: SINAPI | F143: =IF(E143="SINAPI",VLOOKUP($D143,SINAPI,3,0),IF(E143="SETOP",VLOOKUP($D143,SETOP,4,0),IF(E143="CPU",VLOOKUP($D143,COMPOSIÇÃO,5,0),IF(E143="COTAÇÃO",VLOOKUP($D143,COTAÇÃO,8,0),VLOOKUP(#REF!,DIVERSAS,3,0))))) -> M3 | G143: =D144 -> 20.825 | H143: =IF(E143="SINAPI",VLOOKUP($D143,SINAPI,4,0),IF(E143="SETOP",VLOOKUP($D143,SETOP,5,0),IF(E143="CPU",VLOOKUP($D143,COMPOSIÇÃO,8,0),IF(E143="COTAÇÃO",VLOOKUP($D143,COTAÇÃO,11,0),VLOOKUP(#REF!,DIVERSAS,4,0))))) -> 33.61 | I143: =ROUND(H143*(1+$J$11),2) -> 41.75 | J143: =ROUND(G143*H143,2) -> 699.93 | K143: =ROUND(I143*G143,2) -> 869.44
A144: =2000 -> 2000 | C144: VOLUME DE ESCAVAÇÃO | D144: =3.5*3.5*1.7 -> 20.825 | E144: M3
A145: =LEFT(B145) -> 5 | B145: 5.1.4 | C145: =IF($E145="SINAPI",VLOOKUP($D145,SINAPI,2,0),IF(E145="SETOP",VLOOKUP($D145,SETOP,3,0),IF(E145="CPU",VLOOKUP($D145,COMPOSIÇÃO,2,0),IF(E145="COTAÇÃO",VLOOKUP($D145,COTAÇÃO,3,0),VLOOKUP(#REF!,DIVERSAS,2,0))))) -> FABRICAÇÃO, MONTAGEM E DESMONTAGEM DE FÔRMA PARA BLOCO DE COROAMENTO, EM MADEIRA SERRADA, E=25 MM, 1 UTILIZAÇÃO. AF_06/2017 | D145: 96528 | E145: SINAPI | F145: =IF(E145="SINAPI",VLOOKUP($D145,SINAPI,3,0),IF(E145="SETOP",VLOOKUP($D145,SETOP,4,0),IF(E145="CPU",VLOOKUP($D145,COMPOSIÇÃO,5,0),IF(E145="COTAÇÃO",VLOOKUP($D145,COTAÇÃO,8,0),VLOOKUP(#REF!,DIVERSAS,3,0))))) -> M2 | G145: =D146 -> 19.34 | H145: =IF(E145="SINAPI",VLOOKUP($D145,SINAPI,4,0),IF(E145="SETOP",VLOOKUP($D145,SETOP,5,0),IF(E145="CPU",VLOOKUP($D145,COMPOSIÇÃO,8,0),IF(E145="COTAÇÃO",VLOOKUP($D145,COTAÇÃO,11,0),VLOOKUP(#REF!,DIVERSAS,4,0))))) -> 253.13 | I145: =ROUND(H145*(1+$J$11),2) -> 314.46 | J145: =ROUND(G145*H145,2) -> 4895.53 | K145: =ROUND(I145*G145,2) -> 6081.66
A146: =2000 -> 2000 | C146: ÁREA TOTAL DE FORMA PARA FUNDAÇÃO | D146: 19.34 | E146: M2
A147: =LEFT(B147) -> 5 | B147: 5.1.5 | C147: =IF($E147="SINAPI",VLOOKUP($D147,SINAPI,2,0),IF(E147="SETOP",VLOOKUP($D147,SETOP,3,0),IF(E147="CPU",VLOOKUP($D147,COMPOSIÇÃO,2,0),IF(E147="COTAÇÃO",VLOOKUP($D147,COTAÇÃO,3,0),VLOOKUP(#REF!,DIVERSAS,2,0))))) -> ESTACA HÉLICE CONTÍNUA , DIÂMETRO DE 50 CM, INCLUSO CONCRETO FCK=30MPA E ARMADURA MÍNIMA (EXCLUSIVE MOBILIZAÇÃO, DESMOBILIZAÇÃO E BOMBEAMENTO). AF_12/2019 | D147: 100652 | E147: SINAPI | F147: =IF(E147="SINAPI",VLOOKUP($D147,SINAPI,3,0),IF(E147="SETOP",VLOOKUP($D147,SETOP,4,0),IF(E147="CPU",VLOOKUP($D147,COMPOSIÇÃO,5,0),IF(E147="COTAÇÃO",VLOOKUP($D147,COTAÇÃO,8,0),VLOOKUP(#REF!,DIVERSAS,3,0))))) -> M | G147: =D148 -> 40 | H147: =IF(E147="SINAPI",VLOOKUP($D147,SINAPI,4,0),IF(E147="SETOP",VLOOKUP($D147,SETOP,5,0),IF(E147="CPU",VLOOKUP($D147,COMPOSIÇÃO,8,0),IF(E147="COTAÇÃO",VLOOKUP($D147,COTAÇÃO,11,0),VLOOKUP(#REF!,DIVERSAS,4,0))))) -> 206.46 | I147: =ROUND(H147*(1+$J$11),2) -> 256.49 | J147: =ROUND(G147*H147,2) -> 8258.4 | K147: =ROUND(I147*G147,2) -> 10259.6
A148: =2000 -> 2000 | C148: COMPRIMENTO TOTAL DE ESTACA | D148: =5*8 -> 40 | E148: M
A149: =LEFT(B149) -> 5 | B149: 5.1.6 | C149: =IF($E149="SINAPI",VLOOKUP($D149,SINAPI,2,0),IF(E149="SETOP",VLOOKUP($D149,SETOP,3,0),IF(E149="CPU",VLOOKUP($D149,COMPOSIÇÃO,2,0),IF(E149="COTAÇÃO",VLOOKUP($D149,COTAÇÃO,3,0),VLOOKUP(#REF!,DIVERSAS,2,0))))) -> LASTRO DE CONCRETO MAGRO, APLICADO EM BLOCOS DE COROAMENTO OU SAPATAS. AF_08/2017 | D149: 96616 | E149: SINAPI | F149: =IF(E149="SINAPI",VLOOKUP($D149,SINAPI,3,0),IF(E149="SETOP",VLOOKUP($D149,SETOP,4,0),IF(E149="CPU",VLOOKUP($D149,COMPOSIÇÃO,5,0),IF(E149="COTAÇÃO",VLOOKUP($D149,COTAÇÃO,8,0),VLOOKUP(#REF!,DIVERSAS,3,0))))) -> M3 | G149: =D150 -> 9 | H149: =IF(E149="SINAPI",VLOOKUP($D149,SINAPI,4,0),IF(E149="SETOP",VLOOKUP($D149,SETOP,5,0),IF(E149="CPU",VLOOKUP($D149,COMPOSIÇÃO,8,0),IF(E149="COTAÇÃO",VLOOKUP($D149,COTAÇÃO,11,0),VLOOKUP(#REF!,DIVERSAS,4,0))))) -> 481.1 | I149: =ROUND(H149*(1+$J$11),2) -> 597.67 | J149: =ROUND(G149*H149,2) -> 4329.9 | K149: =ROUND(I149*G149,2) -> 5379.03
A150: =2000 -> 2000 | C150: VOLUME DE LASTRO DE CONCRETO MAGRO | D150: =3*3 -> 9 | E150: M2
A151: =LEFT(B151) -> 5 | B151: 5.1.7 | C151: =IF($E151="SINAPI",VLOOKUP($D151,SINAPI,2,0),IF(E151="SETOP",VLOOKUP($D151,SETOP,3,0),IF(E151="CPU",VLOOKUP($D151,COMPOSIÇÃO,2,0),IF(E151="COTAÇÃO",VLOOKUP($D151,COTAÇÃO,3,0),VLOOKUP(#REF!,DIVERSAS,2,0))))) -> REATERRO MANUAL DE VALAS COM COMPACTAÇÃO MECANIZADA. AF_04/2016 | D151: 93382 | E151: SINAPI | F151: =IF(E151="SINAPI",VLOOKUP($D151,SINAPI,3,0),IF(E151="SETOP",VLOOKUP($D151,SETOP,4,0),IF(E151="CPU",VLOOKUP($D151,COMPOSIÇÃO,5,0),IF(E151="COTAÇÃO",VLOOKUP($D151,COTAÇÃO,8,0),VLOOKUP(#REF!,DIVERSAS,3,0))))) -> M3 | G151: =D152 -> 6.265 | H151: =IF(E151="SINAPI",VLOOKUP($D151,SINAPI,4,0),IF(E151="SETOP",VLOOKUP($D151,SETOP,5,0),IF(E151="CPU",VLOOKUP($D151,COMPOSIÇÃO,8,0),IF(E151="COTAÇÃO",VLOOKUP($D151,COTAÇÃO,11,0),VLOOKUP(#REF!,DIVERSAS,4,0))))) -> 24.04 | I151: =ROUND(H151*(1+$J$11),2) -> 29.86 | J151: =ROUND(G151*H151,2) -> 150.61 | K151: =ROUND(I151*G151,2) -> 187.07
A152: =2000 -> 2000 | C152: VOLUME DE REATERRO | D152: =D144-D140 -> 6.265 | E152: M3
B153: 5.2 | C153: RESERVATÓRIO
A154: =LEFT(B154) -> 5 | B154: 5.2.1 | C154: =IF($E154="SINAPI",VLOOKUP($D154,SINAPI,2,0),IF(E154="SETOP",VLOOKUP($D154,SETOP,3,0),IF(E154="CPU",VLOOKUP($D154,COMPOSIÇÃO,2,0),IF(E154="COTAÇÃO",VLOOKUP($D154,COTAÇÃO,3,0),VLOOKUP(#REF!,DIVERSAS,2,0))))) -> RESERVATÓRIO METÁLICO TIPO TAÇA 30.000 L COM FRETE INCLUSO | D154: DAC-01 | E154: COTAÇÃO | F154: =IF(E154="SINAPI",VLOOKUP($D154,SINAPI,3,0),IF(E154="SETOP",VLOOKUP($D154,SETOP,4,0),IF(E154="CPU",VLOOKUP($D154,COMPOSIÇÃO,5,0),IF(E154="COTAÇÃO",VLOOKUP($D154,COTAÇÃO,8,0),VLOOKUP(#REF!,DIVERSAS,3,0))))) -> UN | G154: =D155 -> 1 | H154: =IF(E154="SINAPI",VLOOKUP($D154,SINAPI,4,0),IF(E154="SETOP",VLOOKUP($D154,SETOP,5,0),IF(E154="CPU",VLOOKUP($D154,COMPOSIÇÃO,8,0),IF(E154="COTAÇÃO",VLOOKUP($D154,COTAÇÃO,11,0),VLOOKUP(#REF!,DIVERSAS,4,0))))) -> 43500 | I154: =ROUND(H154*(1+DADOS!D12),2) -> 52308.75 | J154: =ROUND(G154*H154,2) -> 43500 | K154: =ROUND(I154*G154,2) -> 52308.75
A155: =2000 -> 2000 | C155: RESERVATÓRIO TAÇA 30 M3 | D155: 1 | E155: U
A156: =LEFT(B156) -> 5 | B156: 5.3.1 | C156: =IF($E156="SINAPI",VLOOKUP($D156,SINAPI,2,0),IF(E156="SETOP",VLOOKUP($D156,SETOP,3,0),IF(E156="CPU",VLOOKUP($D156,COMPOSIÇÃO,2,0),IF(E156="COTAÇÃO",VLOOKUP($D156,COTAÇÃO,3,0),VLOOKUP(#REF!,DIVERSAS,2,0))))) -> INSTALAÇÃO DO RESERVATÓRIO DE ÁGUA | D156: DAC-5.1 | E156: CPU | F156: =IF(E156="SINAPI",VLOOKUP($D156,SINAPI,3,0),IF(E156="SETOP",VLOOKUP($D156,SETOP,4,0),IF(E156="CPU",VLOOKUP($D156,COMPOSIÇÃO,5,0),IF(E156="COTAÇÃO",VLOOKUP($D156,COTAÇÃO,8,0),VLOOKUP(#REF!,DIVERSAS,3,0))))) -> UN | G156: 1 | H156: =IF(E156="SINAPI",VLOOKUP($D156,SINAPI,4,0),IF(E156="SETOP",VLOOKUP($D156,SETOP,5,0),IF(E156="CPU",VLOOKUP($D156,COMPOSIÇÃO,8,0),IF(E156="COTAÇÃO",VLOOKUP($D156,COTAÇÃO,11,0),VLOOKUP(#REF!,DIVERSAS,4,0))))) -> 1729.52 | I156: =ROUND(H156*(1+$J$11),2) -> 2148.58 | J156: =ROUND(G156*H156,2) -> 1729.52 | K156: =ROUND(I156*G156,2) -> 2148.58
A157: =2000 -> 2000 | C157: QUANTIDADE DE RESERVATÓRIO | D157: 1 | E157: U
A158: 1000 | B158: 6 | C158: SISTEMA ELÉTRICO | J158: =SUMIF(A:A,B158,J:J) -> 16561.29 | K158: =SUMIF(A:A,B158,K:K) -> 20574.59
B159: 6.1 | C159: INSTALAÇÃO ELÉTRICA
A160: =LEFT(B160) -> 6 | B160: 6.1.1 | C160: =IF($E160="SINAPI",VLOOKUP($D160,SINAPI,2,0),IF(E160="SETOP",VLOOKUP($D160,SETOP,3,0),IF(E160="CPU",VLOOKUP($D160,COMPOSIÇÃO,2,0),IF(E160="COTAÇÃO",VLOOKUP($D160,COTAÇÃO,3,0),VLOOKUP(#REF!,DIVERSAS,2,0))))) -> CABO DE COBRE FLEXÍVEL ISOLADO, 1,5 MM², ANTI-CHAMA 0,6/1,0 KV, PARA CIRCUITOS TERMINAIS - FORNECIMENTO E INSTALAÇÃO. AF_12/2015 | D160: 91925 | E160: SINAPI | F160: =IF(E160="SINAPI",VLOOKUP($D160,SINAPI,3,0),IF(E160="SETOP",VLOOKUP($D160,SETOP,4,0),IF(E160="CPU",VLOOKUP($D160,COMPOSIÇÃO,5,0),IF(E160="COTAÇÃO",VLOOKUP($D160,COTAÇÃO,8,0),VLOOKUP(#REF!,DIVERSAS,3,0))))) -> M | G160: =D161 -> 320 | H160: =IF(E160="SINAPI",VLOOKUP($D160,SINAPI,4,0),IF(E160="SETOP",VLOOKUP($D160,SETOP,5,0),IF(E160="CPU",VLOOKUP($D160,COMPOSIÇÃO,8,0),IF(E160="COTAÇÃO",VLOOKUP($D160,COTAÇÃO,11,0),VLOOKUP(#REF!,DIVERSAS,4,0))))) -> 3.59 | I160: =ROUND(H160*(1+$J$11),2) -> 4.46 | J160: =ROUND(G160*H160,2) -> 1148.8 | K160: =ROUND(I160*G160,2) -> 1427.2
A161: =2000 -> 2000 | C161: QUANTIDADE AMARELO | D161: 320 | E161: M
A162: =2000 -> 2000 | C162: TOTAL | D162: =D161 -> 320
A163: =LEFT(B163) -> 6 | B163: 6.1.2 | C163: =IF($E163="SINAPI",VLOOKUP($D163,SINAPI,2,0),IF(E163="SETOP",VLOOKUP($D163,SETOP,3,0),IF(E163="CPU",VLOOKUP($D163,COMPOSIÇÃO,2,0),IF(E163="COTAÇÃO",VLOOKUP($D163,COTAÇÃO,3,0),VLOOKUP(#REF!,DIVERSAS,2,0))))) -> CABO DE COBRE FLEXÍVEL ISOLADO, 25 MM², ANTI-CHAMA 0,6/1,0 KV, PARA DISTRIBUIÇÃO - FORNECIMENTO E INSTALAÇÃO. AF_12/2015 | D163: 92984 | E163: SINAPI | F163: =IF(E163="SINAPI",VLOOKUP($D163,SINAPI,3,0),IF(E163="SETOP",VLOOKUP($D163,SETOP,4,0),IF(E163="CPU",VLOOKUP($D163,COMPOSIÇÃO,5,0),IF(E163="COTAÇÃO",VLOOKUP($D163,COTAÇÃO,8,0),VLOOKUP(#REF!,DIVERSAS,3,0))))) -> M | G163: =D168 -> 554 | H163: =IF(E163="SINAPI",VLOOKUP($D163,SINAPI,4,0),IF(E163="SETOP",VLOOKUP($D163,SETOP,5,0),IF(E163="CPU",VLOOKUP($D163,COMPOSIÇÃO,8,0),IF(E163="COTAÇÃO",VLOOKUP($D163,COTAÇÃO,11,0),VLOOKUP(#REF!,DIVERSAS,4,0))))) -> 26.08 | I163: =ROUND(H163*(1+$J$11),2) -> 32.4 | J163: =ROUND(G163*H163,2) -> 14448.32 | K163: =ROUND(I163*G163,2) -> 17949.6
A164: =2000 -> 2000 | C164: QUANTIDADE AMARELO | D164: 320 | E164: M
A165: =2000 -> 2000 | C165: QUANTIDADE PRETO | D165: 37 | E165: M
A166: =2000 -> 2000 | C166: QUANTIDADE BRANCO | D166: 37 | E166: M
A167: =2000 -> 2000 | C167: QUANTIDADE VERDE-AMARELO | D167: 160 | E167: M
A168: =2000 -> 2000 | C168: TOTAL | D168: =SUM(D164:D167) -> 554 | E168: M
A169: =LEFT(B169) -> 6 | B169: 6.1.3 | C169: =IF($E169="SINAPI",VLOOKUP($D169,SINAPI,2,0),IF(E169="SETOP",VLOOKUP($D169,SETOP,3,0),IF(E169="CPU",VLOOKUP($D169,COMPOSIÇÃO,2,0),IF(E169="COTAÇÃO",VLOOKUP($D169,COTAÇÃO,3,0),VLOOKUP(#REF!,DIVERSAS,2,0))))) -> DISJUNTOR BIPOLAR TIPO DIN, CORRENTE NOMINAL DE 40A - FORNECIMENTO E INSTALAÇÃO. AF_10/2020 | D169: 93665 | E169: SINAPI | F169: =IF(E169="SINAPI",VLOOKUP($D169,SINAPI,3,0),IF(E169="SETOP",VLOOKUP($D169,SETOP,4,0),IF(E169="CPU",VLOOKUP($D169,COMPOSIÇÃO,5,0),IF(E169="COTAÇÃO",VLOOKUP($D169,COTAÇÃO,8,0),VLOOKUP(#REF!,DIVERSAS,3,0))))) -> UN | G169: =D170 -> 1 | H169: =IF(E169="SINAPI",VLOOKUP($D169,SINAPI,4,0),IF(E169="SETOP",VLOOKUP($D169,SETOP,5,0),IF(E169="CPU",VLOOKUP($D169,COMPOSIÇÃO,8,0),IF(E169="COTAÇÃO",VLOOKUP($D169,COTAÇÃO,11,0),VLOOKUP(#REF!,DIVERSAS,4,0))))) -> 86.15 | I169: =ROUND(H169*(1+$J$11),2) -> 107.02 | J169: =ROUND(G169*H169,2) -> 86.15 | K169: =ROUND(I169*G169,2) -> 107.02
A170: =2000 -> 2000 | C170: QUANTIDADE | D170: 1 | E170: U
A171: =LEFT(B171) -> 6 | B171: 6.1.4 | C171: =IF($E171="SINAPI",VLOOKUP($D171,SINAPI,2,0),IF(E171="SETOP",VLOOKUP($D171,SETOP,3,0),IF(E171="CPU",VLOOKUP($D171,COMPOSIÇÃO,2,0),IF(E171="COTAÇÃO",VLOOKUP($D171,COTAÇÃO,3,0),VLOOKUP(#REF!,DIVERSAS,2,0))))) -> ELETRODUTO FLEXÍVEL 1/2'' EM PAREDE E ENTERRADO - FORNECIMENTO E INTALAÇÃO | D171: DAC-6.2 | E171: CPU | F171: =IF(E171="SINAPI",VLOOKUP($D171,SINAPI,3,0),IF(E171="SETOP",VLOOKUP($D171,SETOP,4,0),IF(E171="CPU",VLOOKUP($D171,COMPOSIÇÃO,5,0),IF(E171="COTAÇÃO",VLOOKUP($D171,COTAÇÃO,8,0),VLOOKUP(#REF!,DIVERSAS,3,0))))) -> UN | G171: 32 | H171: =IF(E171="SINAPI",VLOOKUP($D171,SINAPI,4,0),IF(E171="SETOP",VLOOKUP($D171,SETOP,5,0),IF(E171="CPU",VLOOKUP($D171,COMPOSIÇÃO,8,0),IF(E171="COTAÇÃO",VLOOKUP($D171,COTAÇÃO,11,0),VLOOKUP(#REF!,DIVERSAS,4,0))))) -> 8.314 | I171: =ROUND(H171*(1+$J$11),2) -> 10.33 | J171: =ROUND(G171*H171,2) -> 266.05 | K171: =ROUND(I171*G171,2) -> 330.56
A172: =LEFT(B172) -> 6 | B172: 6.1.5 | C172: =IF($E172="SINAPI",VLOOKUP($D172,SINAPI,2,0),IF(E172="SETOP",VLOOKUP($D172,SETOP,3,0),IF(E172="CPU",VLOOKUP($D172,COMPOSIÇÃO,2,0),IF(E172="COTAÇÃO",VLOOKUP($D172,COTAÇÃO,3,0),VLOOKUP(#REF!,DIVERSAS,2,0))))) -> ELETRODUTO FLEXÍVEL 1.1/4'' EM PAREDE E ENTERRADO - FORNECIMENTO E INTALAÇÃO | D172: DAC-6.1 | E172: CPU | F172: =IF(E172="SINAPI",VLOOKUP($D172,SINAPI,3,0),IF(E172="SETOP",VLOOKUP($D172,SETOP,4,0),IF(E172="CPU",VLOOKUP($D172,COMPOSIÇÃO,5,0),IF(E172="COTAÇÃO",VLOOKUP($D172,COTAÇÃO,8,0),VLOOKUP(#REF!,DIVERSAS,3,0))))) -> UN | G172: 40 | H172: =IF(E172="SINAPI",VLOOKUP($D172,SINAPI,4,0),IF(E172="SETOP",VLOOKUP($D172,SETOP,5,0),IF(E172="CPU",VLOOKUP($D172,COMPOSIÇÃO,8,0),IF(E172="COTAÇÃO",VLOOKUP($D172,COTAÇÃO,11,0),VLOOKUP(#REF!,DIVERSAS,4,0))))) -> 12.854 | I172: =ROUND(H172*(1+$J$11),2) -> 15.97 | J172: =ROUND(G172*H172,2) -> 514.16 | K172: =ROUND(I172*G172,2) -> 638.8
A173: =LEFT(B173) -> 6 | B173: 6.1.6 | C173: =IF($E173="SINAPI",VLOOKUP($D173,SINAPI,2,0),IF(E173="SETOP",VLOOKUP($D173,SETOP,3,0),IF(E173="CPU",VLOOKUP($D173,COMPOSIÇÃO,2,0),IF(E173="COTAÇÃO",VLOOKUP($D173,COTAÇÃO,3,0),VLOOKUP(#REF!,DIVERSAS,2,0))))) -> RASGO EM ALVENARIA PARA PASSAGEM DE ELETRODUTO/TUBULAÇÃO, DIÂMETROS DE 15MM A 25MM (1/2" A 1"), EXCLUSIVE ENCHIMENTO | D173: ED-50707 | E173: SETOP | F173: =IF(E173="SINAPI",VLOOKUP($D173,SINAPI,3,0),IF(E173="SETOP",VLOOKUP($D173,SETOP,4,0),IF(E173="CPU",VLOOKUP($D173,COMPOSIÇÃO,5,0),IF(E173="COTAÇÃO",VLOOKUP($D173,COTAÇÃO,8,0),VLOOKUP(#REF!,DIVERSAS,3,0))))) -> M | G173: 24 | H173: =IF(E173="SINAPI",VLOOKUP($D173,SINAPI,4,0),IF(E173="SETOP",VLOOKUP($D173,SETOP,5,0),IF(E173="CPU",VLOOKUP($D173,COMPOSIÇÃO,8,0),IF(E173="COTAÇÃO",VLOOKUP($D173,COTAÇÃO,11,0),VLOOKUP(#REF!,DIVERSAS,4,0))))) -> 2.49 | I173: =ROUND(H173*(1+$J$11),2) -> 3.09 | J173: =ROUND(G173*H173,2) -> 59.76 | K173: =ROUND(I173*G173,2) -> 74.16
A174: =LEFT(B174) -> 6 | B174: 6.1.7 | C174: =IF($E174="SINAPI",VLOOKUP($D174,SINAPI,2,0),IF(E174="SETOP",VLOOKUP($D174,SETOP,3,0),IF(E174="CPU",VLOOKUP($D174,COMPOSIÇÃO,2,0),IF(E174="COTAÇÃO",VLOOKUP($D174,COTAÇÃO,3,0),VLOOKUP(#REF!,DIVERSAS,2,0))))) -> RASGO EM CONCRETO PARA PASSAGEM DE ELETRODUTO/TUBULAÇÃO, DIÂMETROS DE 32MM A 50MM (1.1/4" A 2"), EXCLUSIVE ENCHIMENTO | D174: ED-50711 | E174: SETOP | F174: =IF(E174="SINAPI",VLOOKUP($D174,SINAPI,3,0),IF(E174="SETOP",VLOOKUP($D174,SETOP,4,0),IF(E174="CPU",VLOOKUP($D174,COMPOSIÇÃO,5,0),IF(E174="COTAÇÃO",VLOOKUP($D174,COTAÇÃO,8,0),VLOOKUP(#REF!,DIVERSAS,3,0))))) -> M | G174: 5 | H174: =IF(E174="SINAPI",VLOOKUP($D174,SINAPI,4,0),IF(E174="SETOP",VLOOKUP($D174,SETOP,5,0),IF(E174="CPU",VLOOKUP($D174,COMPOSIÇÃO,8,0),IF(E174="COTAÇÃO",VLOOKUP($D174,COTAÇÃO,11,0),VLOOKUP(#REF!,DIVERSAS,4,0))))) -> 7.61 | I174: =ROUND(H174*(1+$J$11),2) -> 9.45 | J174: =ROUND(G174*H174,2) -> 38.05 | K174: =ROUND(I174*G174,2) -> 47.25
A175: 1000 | B175: 7 | C175: LIMPEZA DIÁRIA DA OBRA | J175: =SUMIF(A:A,B175,J:J) -> 3582.15 | K175: =SUMIF(A:A,B175,K:K) -> 4450.07
A176: 7 | B176: 7.1 | C176: =IF($E176="SINAPI",VLOOKUP($D176,SINAPI,2,0),IF(E176="SETOP",VLOOKUP($D176,SETOP,3,0),IF(E176="CPU",VLOOKUP($D176,COMPOSIÇÃO,2,0),IF(E176="COTAÇÃO",VLOOKUP($D176,COTAÇÃO,3,0),VLOOKUP(#REF!,DIVERSAS,2,0))))) -> LIMPEZA PERMANENTE DA OBRA - 01 SERVENTE X 8 HORAS DIÁRIAS | D176: ED-50269 | E176: SETOP | F176: =IF(E176="SINAPI",VLOOKUP($D176,SINAPI,3,0),IF(E176="SETOP",VLOOKUP($D176,SETOP,4,0),IF(E176="CPU",VLOOKUP($D176,COMPOSIÇÃO,5,0),IF(E176="COTAÇÃO",VLOOKUP($D176,COTAÇÃO,8,0),VLOOKUP(#REF!,DIVERSAS,3,0))))) -> MÊS | G176: =D177 -> 1 | H176: =IF(E176="SINAPI",VLOOKUP($D176,SINAPI,4,0),IF(E176="SETOP",VLOOKUP($D176,SETOP,5,0),IF(E176="CPU",VLOOKUP($D176,COMPOSIÇÃO,8,0),IF(E176="COTAÇÃO",VLOOKUP($D176,COTAÇÃO,11,0),VLOOKUP(#REF!,DIVERSAS,4,0))))) -> 3102 | I176: =ROUND(H176*(1+$J$11),2) -> 3853.61 | J176: =ROUND(G176*H176,2) -> 3102 | K176: =ROUND(I176*G176,2) -> 3853.61
A177: =2000 -> 2000 | C177: QUANTIDADE DE MESES | D177: 1 | E177: MÊS
A178: 7 | B178: 7.2 | C178: =IF($E178="SINAPI",VLOOKUP($D178,SINAPI,2,0),IF(E178="SETOP",VLOOKUP($D178,SETOP,3,0),IF(E178="CPU",VLOOKUP($D178,COMPOSIÇÃO,2,0),IF(E178="COTAÇÃO",VLOOKUP($D178,COTAÇÃO,3,0),VLOOKUP(#REF!,DIVERSAS,2,0))))) -> CARGA, MANOBRA E DESCARGA DE SOLOS E MATERIAIS GRANULARES EM CAMINHÃO BASCULANTE 10 M³ - CARGA COM ESCAVADEIRA HIDRÁULICA (CAÇAMBA DE 1,20 M³ / 155 HP) E DESCARGA LIVRE (UNIDADE: M3). AF_07/2020 | D178: 100978 | E178: SINAPI | F178: =IF(E178="SINAPI",VLOOKUP($D178,SINAPI,3,0),IF(E178="SETOP",VLOOKUP($D178,SETOP,4,0),IF(E178="CPU",VLOOKUP($D178,COMPOSIÇÃO,5,0),IF(E178="COTAÇÃO",VLOOKUP($D178,COTAÇÃO,8,0),VLOOKUP(#REF!,DIVERSAS,3,0))))) -> M3 | G178: =D182 -> 17.6 | H178: =IF(E178="SINAPI",VLOOKUP($D178,SINAPI,4,0),IF(E178="SETOP",VLOOKUP($D178,SETOP,5,0),IF(E178="CPU",VLOOKUP($D178,COMPOSIÇÃO,8,0),IF(E178="COTAÇÃO",VLOOKUP($D178,COTAÇÃO,11,0),VLOOKUP(#REF!,DIVERSAS,4,0))))) -> 4.58 | I178: =ROUND(H178*(1+$J$11),2) -> 5.69 | J178: =ROUND(G178*H178,2) -> 80.61 | K178: =ROUND(I178*G178,2) -> 100.14
A179: =2000 -> 2000 | C179: VOLUME DE ENTULHO DIÁRIO | D179: 0.8 | E179: M3
A180: =2000 -> 2000 | C180: DIAS NO MÊS | D180: 22
A181: =2000 -> 2000 | C181: MESES | D181: 1
A182: =2000 -> 2000 | C182: TOTAL | D182: =D181*D179*D180 -> 17.6 | E182: M3
A183: 7 | B183: 7.3 | C183: =IF($E183="SINAPI",VLOOKUP($D183,SINAPI,2,0),IF(E183="SETOP",VLOOKUP($D183,SETOP,3,0),IF(E183="CPU",VLOOKUP($D183,COMPOSIÇÃO,2,0),IF(E183="COTAÇÃO",VLOOKUP($D183,COTAÇÃO,3,0),VLOOKUP(#REF!,DIVERSAS,2,0))))) -> TRANSPORTE COM CAMINHÃO BASCULANTE DE 10 M³, EM VIA URBANA PAVIMENTADA, DMT ATÉ 30 KM (UNIDADE: M3XKM). AF_07/2020 | D183: 95875 | E183: SINAPI | F183: =IF(E183="SINAPI",VLOOKUP($D183,SINAPI,3,0),IF(E183="SETOP",VLOOKUP($D183,SETOP,4,0),IF(E183="CPU",VLOOKUP($D183,COMPOSIÇÃO,5,0),IF(E183="COTAÇÃO",VLOOKUP($D183,COTAÇÃO,8,0),VLOOKUP(#REF!,DIVERSAS,3,0))))) -> M3XKM | G183: =D186 -> 248.16 | H183: =IF(E183="SINAPI",VLOOKUP($D183,SINAPI,4,0),IF(E183="SETOP",VLOOKUP($D183,SETOP,5,0),IF(E183="CPU",VLOOKUP($D183,COMPOSIÇÃO,8,0),IF(E183="COTAÇÃO",VLOOKUP($D183,COTAÇÃO,11,0),VLOOKUP(#REF!,DIVERSAS,4,0))))) -> 1.61 | I183: =ROUND(H183*(1+$J$11),2) -> 2 | J183: =ROUND(G183*H183,2) -> 399.54 | K183: =ROUND(I183*G183,2) -> 496.32
A184: =2000 -> 2000 | C184: ÁREA PAVIMENTADA | D184: =D182 -> 17.6 | E184: M3
A185: =2000 -> 2000 | C185: D.M.T. | D185: 14.1 | E185: KM
A186: =2000 -> 2000 | C186: TOTAL | D186: =D185*D184 -> 248.16 | E186: M3XKM
B187: TOTAL INCLUINDO ADMINISTRAÇÃO | J187: =SUMIF(A:A,1000,J:J) -> 249170.68
B188: ="BDI " -> BDI | J188: =J189-J187 -> 53964.24
B189: TOTAL GERAL | J189: =SUMIF(A:A,1000,K:K) -> 303134.92
C192: ELABORADO POR: | D192: FELIPE GUIMARÃES ALEXANDRE
A194: =2000 -> 2000
C196: RESPONSÁVEL TÉCNICO: | D196: FLÁVIA CRISTINA BARBOSA
D197: CREA - MG 187.842/D

Sheet CPU
A2: ="COMPOSIÇÕES - " &B3 -> COMPOSIÇÕES - PROJETO DE ABASTECIMENTO DE ÁGUA - "E.M. PROFESSORA MARIA BARBOSA" | G2: Revisão: | H2: =DADOS!D6 -> R00
A3: Projeto: | B3: =DADOS!D8 -> PROJETO DE ABASTECIMENTO DE ÁGUA - "E.M. PROFESSORA MARIA BARBOSA" | F3: Informações:
F4: Data: | G4: =DADOS!D2 -> 2021-08-09
A5: Responsável:
F6: Referências
F7: =DADOS!D14 -> SINAPI | G7: =DADOS!D16 -> 2021-06-01
F8: =DADOS!D18 -> SETOP | G8: =DADOS!D20 -> 2021-04-01
A9: ="PROJETO EXECUTIVO - "&B3 -> PROJETO EXECUTIVO - PROJETO DE ABASTECIMENTO DE ÁGUA - "E.M. PROFESSORA MARIA BARBOSA"
A10: ITEM | B10: DESCRIÇÃO | D10: REFÊRENCIA | E10: U | F10: COEFICIENTE | G10: PREÇO UNIT. | H10: TOTAL
A11: 0 | B11: DIVERSOS
A12: DAC-0.1 | B12: CIMBRAMENTO-ESCORAMENTO DE FORMAS DE H=3,00 A 3,50M, COM MADEIRA 3A QUALIDADE, NÃO APARELHADA, APROVEITAMENTO TABUAS 3X E PRUMOS 4X | D12: CPU | E12: UN | H12: =SUM(H13:XFD17) -> 27.8537272
A13: 4448 | B13: =IF(D13="SINAPI",VLOOKUP(A13,SINAPI,2,0),IF(D13="SETOP",VLOOKUP(A13,SETOP,3,0),IF(D13="CPU",VLOOKUP(A13,COMPOSIÇÃO,2,0),VLOOKUP(A13,COTAÇÃO,3,0)))) -> VIGA *7,5 X 15 CM EM PINUS, MISTA OU EQUIVALENTE DA REGIAO - BRUTA | D13: SINAPI | E13: =IF(D13="SINAPI",VLOOKUP(A13,SINAPI,3,0),IF(D13="SETOP",VLOOKUP(A13,SETOP,4,0),IF(D13="CPU",VLOOKUP(A13,COMPOSIÇÃO,5,0),VLOOKUP(A13,COTAÇÃO,8,0)))) -> M | F13: 0.17875 | G13: =IF(D13="SINAPI",VLOOKUP(A13,SINAPI,4,0),IF(D13="SETOP",VLOOKUP(A13,SETOP,5,0),IF(D13="CPU",VLOOKUP(A13,COMPOSIÇÃO,8,0),VLOOKUP(A13,COTAÇÃO,11,0)))) -> 16.91 | H13: =F13*G13 -> 3.0226625
A14: 5075 | B14: =IF(D14="SINAPI",VLOOKUP(A14,SINAPI,2,0),IF(D14="SETOP",VLOOKUP(A14,SETOP,3,0),IF(D14="CPU",VLOOKUP(A14,COMPOSIÇÃO,2,0),VLOOKUP(A14,COTAÇÃO,3,0)))) -> PREGO DE ACO POLIDO COM CABECA 18 X 30 (2 3/4 X 10) | D14: SINAPI | E14: =IF(D14="SINAPI",VLOOKUP(A14,SINAPI,3,0),IF(D14="SETOP",VLOOKUP(A14,SETOP,4,0),IF(D14="CPU",VLOOKUP(A14,COMPOSIÇÃO,5,0),VLOOKUP(A14,COTAÇÃO,8,0)))) -> KG | F14: 0.078 | G14: =IF(D14="SINAPI",VLOOKUP(A14,SINAPI,4,0),IF(D14="SETOP",VLOOKUP(A14,SETOP,5,0),IF(D14="CPU",VLOOKUP(A14,COMPOSIÇÃO,8,0),VLOOKUP(A14,COTAÇÃO,11,0)))) -> 18.59 | H14: =F14*G14 -> 1.45002
A15: 6189 | B15: =IF(D15="SINAPI",VLOOKUP(A15,SINAPI,2,0),IF(D15="SETOP",VLOOKUP(A15,SETOP,3,0),IF(D15="CPU",VLOOKUP(A15,COMPOSIÇÃO,2,0),VLOOKUP(A15,COTAÇÃO,3,0)))) -> TABUA NAO APARELHADA *2,5 X 30* CM, EM MACARANDUBA, ANGELIM OU EQUIVALENTE DA REGIAO - BRUTA | D15: SINAPI | E15: =IF(D15="SINAPI",VLOOKUP(A15,SINAPI,3,0),IF(D15="SETOP",VLOOKUP(A15,SETOP,4,0),IF(D15="CPU",VLOOKUP(A15,COMPOSIÇÃO,5,0),VLOOKUP(A15,COTAÇÃO,8,0)))) -> M | F15: 0.377 | G15: =IF(D15="SINAPI",VLOOKUP(A15,SINAPI,4,0),IF(D15="SETOP",VLOOKUP(A15,SETOP,5,0),IF(D15="CPU",VLOOKUP(A15,COMPOSIÇÃO,8,0),VLOOKUP(A15,COTAÇÃO,11,0)))) -> 45.64 | H15: =F15*G15 -> 17.20628
A16: 88262 | B16: =IF(D16="SINAPI",VLOOKUP(A16,SINAPI,2,0),IF(D16="SETOP",VLOOKUP(A16,SETOP,3,0),IF(D16="CPU",VLOOKUP(A16,COMPOSIÇÃO,2,0),VLOOKUP(A16,COTAÇÃO,3,0)))) -> CARPINTEIRO DE FORMAS COM ENCARGOS COMPLEMENTARES | D16: SINAPI | E16: =IF(D16="SINAPI",VLOOKUP(A16,SINAPI,3,0),IF(D16="SETOP",VLOOKUP(A16,SETOP,4,0),IF(D16="CPU",VLOOKUP(A16,COMPOSIÇÃO,5,0),VLOOKUP(A16,COTAÇÃO,8,0)))) -> H | F16: 0.18525 | G16: =IF(D16="SINAPI",VLOOKUP(A16,SINAPI,4,0),IF(D16="SETOP",VLOOKUP(A16,SETOP,5,0),IF(D16="CPU",VLOOKUP(A16,COMPOSIÇÃO,8,0),VLOOKUP(A16,COTAÇÃO,11,0)))) -> 19.43 | H16: =F16*G16 -> 3.5994075
A17: 88316 | B17: =IF(D17="SINAPI",VLOOKUP(A17,SINAPI,2,0),IF(D17="SETOP",VLOOKUP(A17,SETOP,3,0),IF(D17="CPU",VLOOKUP(A17,COMPOSIÇÃO,2,0),VLOOKUP(A17,COTAÇÃO,3,0)))) -> SERVENTE COM ENCARGOS COMPLEMENTARES | D17: SINAPI | E17: =IF(D17="SINAPI",VLOOKUP(A17,SINAPI,3,0),IF(D17="SETOP",VLOOKUP(A17,SETOP,4,0),IF(D17="CPU",VLOOKUP(A17,COMPOSIÇÃO,5,0),VLOOKUP(A17,COTAÇÃO,8,0)))) -> H | F17: 0.18252 | G17: =IF(D17="SINAPI",VLOOKUP(A17,SINAPI,4,0),IF(D17="SETOP",VLOOKUP(A17,SETOP,5,0),IF(D17="CPU",VLOOKUP(A17,COMPOSIÇÃO,8,0),VLOOKUP(A17,COTAÇÃO,11,0)))) -> 14.11 | H17: =F17*G17 -> 2.5753572
A18: 1 | B18: =VLOOKUP(A18,ORC,2,3) -> ADMINISTRAÇÃO DE OBRA
A19: DAC-1.1 | B19: TELA PLASTICA LARANJA INCLUINDO VERGALHÃO, PONTEIRA E INSTALAÇÃO | D19: CPU | E19: UN | H19: =SUM(H20:XFD23) -> 10.788
A20: 37524 | B20: =IF(D20="SINAPI",VLOOKUP(A20,SINAPI,2,0),IF(D20="SETOP",VLOOKUP(A20,SETOP,3,0),IF(D20="CPU",VLOOKUP(A20,COMPOSIÇÃO,2,0),VLOOKUP(A20,COTAÇÃO,3,0)))) -> TELA PLASTICA LARANJA, TIPO TAPUME PARA SINALIZACAO, MALHA RETANGULAR, ROLO 1.20 X 50 M (L X C) | D20: SINAPI | E20: =IF(D20="SINAPI",VLOOKUP(A20,SINAPI,3,0),IF(D20="SETOP",VLOOKUP(A20,SETOP,4,0),IF(D20="CPU",VLOOKUP(A20,COMPOSIÇÃO,5,0),VLOOKUP(A20,COTAÇÃO,8,0)))) -> M | F20: 1.1 | G20: =IF(D20="SINAPI",VLOOKUP(A20,SINAPI,4,0),IF(D20="SETOP",VLOOKUP(A20,SETOP,5,0),IF(D20="CPU",VLOOKUP(A20,COMPOSIÇÃO,8,0),VLOOKUP(A20,COTAÇÃO,11,0)))) -> 2.19 | H20: =F20*G20 -> 2.409
A21: 34 | B21: =IF(D21="SINAPI",VLOOKUP(A21,SINAPI,2,0),IF(D21="SETOP",VLOOKUP(A21,SETOP,3,0),IF(D21="CPU",VLOOKUP(A21,COMPOSIÇÃO,2,0),VLOOKUP(A21,COTAÇÃO,3,0)))) -> ACO CA-50, 10,0 MM, VERGALHAO | D21: SINAPI | E21: =IF(D21="SINAPI",VLOOKUP(A21,SINAPI,3,0),IF(D21="SETOP",VLOOKUP(A21,SETOP,4,0),IF(D21="CPU",VLOOKUP(A21,COMPOSIÇÃO,5,0),VLOOKUP(A21,COTAÇÃO,8,0)))) -> KG | F21: 0.55 | G21: =IF(D21="SINAPI",VLOOKUP(A21,SINAPI,4,0),IF(D21="SETOP",VLOOKUP(A21,SETOP,5,0),IF(D21="CPU",VLOOKUP(A21,COMPOSIÇÃO,8,0),VLOOKUP(A21,COTAÇÃO,11,0)))) -> 11.6 | H21: =F21*G21 -> 6.38
A22: 39015 | B22: =IF(D22="SINAPI",VLOOKUP(A22,SINAPI,2,0),IF(D22="SETOP",VLOOKUP(A22,SETOP,3,0),IF(D22="CPU",VLOOKUP(A22,COMPOSIÇÃO,2,0),VLOOKUP(A22,COTAÇÃO,3,0)))) -> PROTETOR/PONTEIRA PLASTICA PARA PONTA DE VERGALHAO DE ATE 1", TIPO PROTETOR DE ESPERA | D22: SINAPI | E22: =IF(D22="SINAPI",VLOOKUP(A22,SINAPI,3,0),IF(D22="SETOP",VLOOKUP(A22,SETOP,4,0),IF(D22="CPU",VLOOKUP(A22,COMPOSIÇÃO,5,0),VLOOKUP(A22,COTAÇÃO,8,0)))) -> UN | F22: 0.7 | G22: =IF(D22="SINAPI",VLOOKUP(A22,SINAPI,4,0),IF(D22="SETOP",VLOOKUP(A22,SETOP,5,0),IF(D22="CPU",VLOOKUP(A22,COMPOSIÇÃO,8,0),VLOOKUP(A22,COTAÇÃO,11,0)))) -> 0.84 | H22: =F22*G22 -> 0.588
A23: 88316 | B23: =IF(D23="SINAPI",VLOOKUP(A23,SINAPI,2,0),IF(D23="SETOP",VLOOKUP(A23,SETOP,3,0),IF(D23="CPU",VLOOKUP(A23,COMPOSIÇÃO,2,0),VLOOKUP(A23,COTAÇÃO,3,0)))) -> SERVENTE COM ENCARGOS COMPLEMENTARES | D23: SINAPI | E23: =IF(D23="SINAPI",VLOOKUP(A23,SINAPI,3,0),IF(D23="SETOP",VLOOKUP(A23,SETOP,4,0),IF(D23="CPU",VLOOKUP(A23,COMPOSIÇÃO,5,0),VLOOKUP(A23,COTAÇÃO,8,0)))) -> H | F23: 0.1 | G23: =IF(D23="SINAPI",VLOOKUP(A23,SINAPI,4,0),IF(D23="SETOP",VLOOKUP(A23,SETOP,5,0),IF(D23="CPU",VLOOKUP(A23,COMPOSIÇÃO,8,0),VLOOKUP(A23,COTAÇÃO,11,0)))) -> 14.11 | H23: =F23*G23 -> 1.411
A24: 4 | B24: =VLOOKUP(A24,ORC,2,3) -> SISTEMA DE CAPTAÇÃO DE ÁGUA
